{"text_format":"1","workbook":"xlsx","n_sheets":4,"sheets":["Решенные примеры (справочник)","Задачки. Таблица Пользователи","Задачки 2. Самостоятельная","Подпись"],"not_rendered":{"charts":0,"images":5,"macros":1,"external_links":0,"defined_names":0,"comments":0,"pivot_tables":0},"unopened":[],"bounds":{"document_bytes":16777216,"sheet_cells":100000,"rows_first":2000,"rows_last":500,"rows_between":2000,"halvings":0,"cell_chars":16384,"cell_head_chars":4096},"cells_cut":0,"cells_raw":0,"read":"whole","date_system":"1900"}

{"sheet":"Решенные примеры (справочник)","index":0,"n_rows":326,"n_cols":9,"rows_kept":326,"cut":false,"hidden":false,"merged":[]}
[null,"Логические выражения в Excel"]
[null,"Результат логического выражения - логическое значение (либо ИСТИНА, либо ЛОЖЬ)."]
[null,"Пример логического выражения: 10 > 5. В ячейке формула записывается как =10>5"]
[]
[null,"Знаки логических операций:"]
[null,"= равенство (проверка идентичности);"]
[null,"<> не равно;"]
[null,"> больше;"]
[null,">= больше либо равно;"]
[null,"< меньше;"]
[null,"<= меньше либо равно."]
[]
["1.","Задача. Функция ЕСЛИ. Что получили - прибыль или убыток?"]
[]
[null,"Функция ЕСЛИ"]
[null,"В зависимости от логического значения ИСТИНА или ЛОЖЬ"]
[null,"функция ЕСЛИ может отдавать разный результат."]
[null,"В примере слева, если числовое значение Выручки >= Издержек"]
[null,"функция ЕСЛИ возвращает текст \"Прибыль\" "]
[null,"иначе функция ЕСЛИ возвращает \"Убыток\""]
[]
[]
[null,"Прибыль или убыток"]
[null,"Выручка",73000]
[null,"Издержки",72000]
[null,{"$f":"IF(C24>=C25,\"Прибыль\",\"Убыток\")","v":"Прибыль"},{"$f":"IF(C24>=C25,C24-C25,C25-C24)","v":1000}]
[]
[]
["2.","Задача. Отметить все продукты, цена которых больше 50, используя логические выражения. Сколько таких продуктов?"]
[]
[null,"Товар","Цена","Количество","Цена  превышает 50 рублей?","Цена  превышает 50 рублей?"]
[null,"Ряженка",32,2,{"$f":"C32>50","v":false},{"$f":"IF(C32>50,1,0)","v":0},"Значения ЛОЖЬ и ИСТИНА удобно перевести в 0 и 1 соответственно, чтобы можно было посчитать единички с помощью СУММы"]
[null,"Сметана",44,6,{"$f":"C33>50","v":false},{"$f":"IF(C33>50,1,0)","v":0}]
[null,"Масло",63,3,true,1]
[null,"Кефир",39,7,false,0]
[null,"Яблоки",43,3,false,0]
[null,"Груши",78,1,true,1]
[null,"Хлеб",32.5,4,false,0]
[null,"Колбаса",423,1,true,1]
[null,"Сыр",342,1,true,1]
[null,"Помидоры",82,2,true,1]
[]
[null,null,null,null,"Сколько таких продуктов:",{"$f":"SUM(F32:F42)","v":5},"Alt + = - вставка функции СУММ() для суммирования чисел в диапазоне."]
[]
["3. ","Задача. Функция ИЛИ. Написать логическое выражение значение которого ИСТИНА, если автолюбители двигались на данном участке с запрещенной скоростью."]
[null,"На данном участке скорость не должна превышать 110 км/ч и быть меньше 40 км/ч."]
[]
[null,"Функция ИЛИ в Excel:"]
[null,"ИЛИ(логичекое выражение 1; логическое выражение 2; и т.д.)"]
[]
[null,"Таблица истинности для ИЛИ."]
[null,"ИЛИ",true,false]
[null,true,{"$f":"OR($B53,C$52)","v":true},true]
[null,false,true,false]
[]
[null,"Проще говоря, если все что будет передано функции ИЛИ имеет значение ЛОЖЬ, только тогда результат функции будет ЛОЖЬ, во всех остальных случаях ИСТИНА."]
[]
[null,"Фамилия","Скорость км/ч","Штраф (ИСТИНА или ЛОЖЬ)","Штраф (ИСТИНА или ЛОЖЬ)","Скорость нарушителей"]
[null,"Крутилин",56,{"$f":"OR(C59<40,C59>110)","v":false},{"$f":"IF(OR(C59<40,C59>110),1,0)","v":0},{"$f":"IF(OR(C59<40,C59>110),C59,\"\")","v":""},"0 нельзя оставлять, иначе минимальная скорость будет посчитана как 0"]
[null,"Баранкин",112,{"$f":"OR(C60<40,C60>110)","v":true},{"$f":"IF(OR(C60<40,C60>110),1,0)","v":1},{"$f":"IF(OR(C60<40,C60>110),C60,\"\")","v":112}]
[null,"Скамейкин",45,false,0,""]
[null,"Колесиков",67,false,0,""]
[null,"Логинов",34,true,1,34]
[]
[null,null,null,"Сколько таких нарушителей:",{"$f":"SUM(E59:E64)","v":2}]
[null,null,null,null,"Максимальная скорость нарушителей:",{"$f":"MAX(F59:F63)","v":112}]
[null,null,null,null,"Минимальная скорость нарушителей:",{"$f":"MIN(F59:F63)","v":34}]
["4.","Задача. Сколько Оплачено заказов на сумму от 1000 рублей."]
[]
[null,"Функция И в Excel:"]
[null,"И(логичекое выражение 1; логическое выражение 2; и т.д.)"]
[]
[]
[null,"Таблица истинности для И."]
[null,"И",true,false]
[null,true,{"$f":"AND($B76,C$75)","v":true},false]
[null,false,false,false]
[]
[null,"Проще говоря, если все что будет передано функции И имеет значение ИСТИНА, только тогда результат функции будет ИСТИНА, во всех остальных случаях ЛОЖЬ."]
[]
[null,"Дата","Заказ №","Покупатель","Количество товаров","Сумма, руб","Статус заказа","Оплачен крупный заказ","Сумма крупного заказа"]
[null,"2013-04-01",1,"Антон",5,120.54,"Оплачен",{"$f":"AND(G82=\"Оплачен\",F82>1000)","v":false},{"$f":"IF(AND(G82=\"Оплачен\",F82>1000),F82,\"\")","v":""}]
[null,"2013-04-01",2,"Екатерина",2,1528.2,"Оплачен",{"$f":"AND(G83=\"Оплачен\",F83>1000)","v":true},{"$f":"IF(AND(G83=\"Оплачен\",F83>1000),F83,\"\")","v":1528.2}]
[null,"2013-04-01",3,"Андрей",11,2638.87,"Отменен",false,""]
[null,"2013-04-01",4,"Антон",1,953.33,"Оплачен",false,""]
[null,"2013-04-01",5,"Сергей",3,742.55,"Оплачен",false,""]
[null,"2013-04-01",6,"Антон",1,210,"Оплачен",false,""]
[null,"2013-04-01",7,"Дмитрий",2,540.5,"Отменен",false,""]
[null,"2013-04-01",8,"Виктор",7,2410,"Оплачен",true,2410]
[null,"2013-04-01",9,"Юлия",5,1012.5,"Оплачен",true,1012.5]
[null,"2013-04-01",10,"Инокентий",8,4500.24,"Оплачен",true,4500.24]
[null,"2013-04-01",11,"Сергей",4,100.7,"Оплачен",false,""]
[null,"2013-04-01",12,"Геннадий",12,5420.52,"Отменен",false,""]
[null,"2013-04-01",13,"Вячеслав",4,300.45,"Оплачен",false,""]
[null,"2013-04-01",14,"Даниил",7,700.47,"Оплачен",false,""]
[null,"2013-04-01",15,"Ирина",8,9654.5,"Оплачен",true,9654.5]
[null,"2013-04-01",16,"Валентин",5,700.35,"Оплачен",false,""]
[null,"2013-04-01",17,"Анатолий",6,210.55,"Отменен",false,""]
[null,"2013-04-01",18,"Наталья",2,100,"Отменен",false,""]
[null,"2013-04-01",19,"Кирилл",4,350.14,"Оплачен",false,""]
[null,"2013-04-01",20,"Георгий",17,8564.2099999999991,"Оплачен",true,8564.2099999999991]
[null,"2013-04-01",21,"Сергей",5,350.88,"Отменен",false,""]
[null,"2013-04-01",22,"Виктория",9,4251.5,"Оплачен",true,4251.5]
[null,"2013-04-01",23,"Василий",2,700.32,"Отменен",false,""]
[null,"2013-04-01",24,"Дарья",1,300.5,"Оплачен",false,""]
[null,"2013-04-01",25,"Евгений",2,1480.88,"Оплачен",true,1480.88]
[null,"2013-04-01",26,"Владимир",3,30.3,"Оплачен",false,""]
[null,"2013-04-01",27,"Дмитрий",11,7854.45,"Отменен",false,""]
[null,"2013-04-01",28,"Александр",2,250.55,"Оплачен",false,""]
[null,"2013-04-01",29,"Матвей",5,320.85000000000002,"Оплачен",false,""]
[null,"2013-04-01",30,"Сергей",5,700.45,"Отменен",false,""]
[null,"2013-04-01",31,"Валентина",4,450.12,"Отменен",false,""]
[null,"2013-04-01",32,"Иван",10,100.99,"Оплачен",false,""]
[null,"2013-04-01",33,"Екатерина",6,920.59,"Оплачен",false,""]
[null,"2013-04-01",34,"Роберт",5,470.7,"Оплачен",false,""]
[null,"2013-04-01",35,"Станислав",11,1100.99,"Отменен",false,""]
[null,"2013-04-01",36,"Ольга",6,689.51,"Оплачен",false,""]
[null,"2013-04-01",37,"Вячеслав",3,300,"Оплачен",false,""]
[null,"2013-04-01",38,"Дмитрий",7,692.99,"Оплачен",false,""]
[null,"2013-04-01",39,"Константин",5,4730.99,"Отменен",false,""]
[null,"2013-04-01",40,"Пётр",12,5670.65,"Отменен",false,""]
[null,"2013-04-01",41,"Виталий",4,300.45,"Оплачен",false,""]
[null,"2013-04-01",42,"Вадим",6,978.66,"Оплачен",false,""]
[null,"2013-04-01",43,"Илья",1,350,"Оплачен",false,""]
[null,"2013-04-01",44,"Владислав",19,8400.5499999999993,"Оплачен",true,8400.5499999999993]
[null,"2013-04-01",45,"Федор",2,219.99,"Отменен",false,""]
[null,"2013-04-01",46,"Дмитрий",6,654.33000000000004,"Оплачен",false,""]
[null,"2013-04-01",47,"Сергей",2,210.55,"Оплачен",false,""]
[null,"2013-04-01",48,"Степан",4,900.62,"Оплачен",false,""]
[null,"2013-04-01",49,"Вадим",1,735.55,"Отменен",false,""]
[null,"2013-04-01",50,"Анатолий",2,300.5,"Оплачен",false,""]
[null,"2013-04-01",51,"Сергей",6,355.5,"Отменен",false,""]
[null,"2013-04-02",52,"Игорь",10,4500,"Отменен",false,""]
[null,"2013-04-02",53,"Станислав",4,355.2,"Оплачен",false,""]
[null,"2013-04-02",54,"Анна",5,284.22000000000003,"Отменен",false,""]
[null,"2013-04-02",55,"Марина",10,5000.5,"Оплачен",true,5000.5]
[null,"2013-04-02",56,"Юлия",2,200.99,"Оплачен",false,""]
[null,"2013-04-02",57,"Степан",4,450.66,"Оплачен",false,""]
[null,"2013-04-02",58,"Никита",4,327.7,"Оплачен",false,""]
[null,"2013-04-02",59,"Артем",8,547.66,"Отменен",false,""]
[null,"2013-04-02",60,"Кристина",4,320.55,"Отменен",false,""]
[null,"2013-04-02",61,"Александр",2,300.5,"Отменен",false,""]
[null,"2013-04-02",62,"Андрей",4,900.62,"Оплачен",false,""]
[null,"2013-04-02",63,"Юрий",7,735.55,"Оплачен",false,""]
[null,"2013-04-02",64,"Евгений",4,499.3,"Оплачен",false,""]
[null,"2013-04-02",65,"Федор",1,4540.6499999999996,"Оплачен",true,4540.6499999999996]
[null,"2013-04-02",66,"Анна",6,311.60000000000002,"Оплачен",{"$f":"AND(G147=\"Оплачен\",F147>1000)","v":false},{"$f":"IF(AND(G147=\"Оплачен\",F147>1000),F147,\"\")","v":""}]
[null,"2013-04-02",67,"Феликс",5,540.54999999999995,"Оплачен",false,""]
[null,"2013-04-02",68,"Степан",2,99.99,"Оплачен",false,""]
[null,"2013-04-02",69,"Дмитрий",5,650.54999999999995,"Оплачен",false,""]
[null,"2013-04-02",70,"Семен",10,100.99,"Отменен",false,""]
[null,"2013-04-02",71,"Юлия",2,420.5,"Оплачен",false,""]
[null,"2013-04-02",72,"Марина",4,400.99,"Оплачен",false,""]
[null,"2013-04-02",73,"Максим",7,550.21,"Отменен",false,""]
[null,"2013-04-02",74,"Александра",3,300.5,"Отменен",false,""]
[null,"2013-04-02",75,"Илья",5,740.26,"Оплачен",false,""]
[null,"2013-04-02",76,"Леонид",11,900.5,"Отменен",false,""]
[null,"2013-04-02",77,"Кира",5,462,"Оплачен",false,""]
[null,"2013-04-02",78,"Наталья",7,278.11,"Оплачен",false,""]
[null,"2013-04-02",79,"Антон",4,455.99,"Оплачен",false,""]
[null,"2013-04-02",80,"Кирилл",12,650.54999999999995,"Оплачен",false,""]
[null,"2013-04-02",81,"Александр",7,455.5,"Отменен",false,""]
[null,"2013-04-02",82,"Юрий",3,420.5,"Оплачен",false,""]
[null,"2013-04-03",83,"Дмитрий",5,350.88,"Оплачен",false,""]
[null,"2013-04-03",84,"Влад",2,4251.5,"Отменен",false,""]
[null,"2013-04-03",85,"Дарья",2,700.32,"Оплачен",false,""]
[null,"2013-04-03",86,"Глеб",6,228.45,"Оплачен",false,""]
[null,"2013-04-03",87,"Эдуард",11,552.96,"Оплачен",false,""]
[null,"2013-04-03",88,"Святослав",4,1012.5,"Оплачен",true,1012.5]
[null,"2013-04-03",89,"Евгений",7,4500.24,"Отменен",false,""]
[null,"2013-04-03",90,"Анжела",5,100.7,"Оплачен",false,""]
[null,"2013-04-03",91,"Андрей",17,5420.52,"Оплачен",true,5420.52]
[null,"2013-04-03",92,"Филипп",2,900.62,"Отменен",false,""]
[null,"2013-04-03",93,"Ильдар",13,735.55,"Оплачен",false,""]
[null,"2013-04-03",94,"Илья",4,300.5,"Оплачен",false,""]
[null,"2013-04-03",95,"Ульяна",13,1300.55,"Отменен",false,""]
[null,"2013-04-03",96,"Сергей",1,99.99,"Отменен",false,""]
[null,"2013-04-03",97,"Алла",8,8975.33,"Оплачен",true,8975.33]
[null,"2013-04-03",98,"Леонид",6,600.54999999999995,"Оплачен",false,""]
[null,"2013-04-03",99,"Эдуард",1,458.99,"Оплачен",false,""]
[null,"2013-04-03",100,"Даниил",4,420.2,"Оплачен",false,""]
[null,"2013-04-03",101,"Степан",8,854.99,"Оплачен",false,""]
[null,"2013-04-03",102,"Сергей",3,900.62,"Отменен",false,""]
[null,"2013-04-03",103,"Александра",12,735.55,"Отменен",false,""]
[null,"2013-04-03",104,"Андрей",2,258.82,"Оплачен",false,""]
[null,"2013-04-03",105,"Святослав",5,355.11,"Отменен",false,""]
[null,"2013-04-03",106,"Анатолий",5,900.62,"Оплачен",false,""]
[null,"2013-04-03",107,"Федор",5,735.55,"Оплачен",false,""]
[null,"2013-04-03",108,"Василий",7,300.5,"Оплачен",false,""]
[null,"2013-04-03",109,"Светлана",4,2100,"Отменен",false,""]
[null,"2013-04-03",110,"Станислав",5,100.99,"Оплачен",false,""]
[null,"2013-04-03",111,"Кристина",3,300,"Оплачен",false,""]
[null,"2013-04-03",112,"Анна",5,400.99,"Отменен",false,""]
[null,"2013-04-03",113,"Евгений",10,450.12,"Оплачен",false,""]
[null,"2013-04-03",114,"Марина",7,740.26,"Оплачен",false,""]
[null,"2013-04-03",115,"Максим",4,900.5,"Оплачен",false,""]
[null,"2013-04-03",116,"Руслан",2,462,"Оплачен",false,""]
[null,"2013-04-03",117,"Сергей",11,9055.5,"Оплачен",true,9055.5]
[null,"2013-04-04",118,"Александр",5,70.239999999999995,"Отменен",false,""]
[null,"2013-04-04",119,"Константин",5,590.66,"Оплачен",false,""]
[null,"2013-04-04",120,"Евгения",1,300.55,"Отменен",false,""]
[null,"2013-04-04",121,"Семен",6,655.45,"Оплачен",false,""]
[null,"2013-04-04",122,"Пётр",1,900.35,"Оплачен",false,""]
[null,"2013-04-04",123,"Юрий",2,650.54999999999995,"Оплачен",false,""]
[null,"2013-04-04",124,"Игорь",5,100.99,"Оплачен",false,""]
[null,"2013-04-04",125,"Юлия",14,420.5,"Отменен",false,""]
[null,"2013-04-04",126,"Наталья",2,75.5,"Оплачен",false,""]
[null,"2013-04-04",127,"Антон",6,740.26,"Отменен",false,""]
[null,"2013-04-04",128,"Ярослав",2,900.5,"Оплачен",false,""]
[null,"2013-04-04",129,"Феликс",5,700.55,"Оплачен",false,""]
[null,"2013-04-04",130,"Дмитрий",7,420.46,"Оплачен",{"$f":"AND(G211=\"Оплачен\",F211>1000)","v":false},{"$f":"IF(AND(G211=\"Оплачен\",F211>1000),F211,\"\")","v":""}]
[null,"2013-04-04",131,"Василий",13,1350.33,"Отменен",false,""]
[null,"2013-04-04",132,"Анна",11,7500.22,"Оплачен",true,7500.22]
[null,"2013-04-04",133,"Илья",5,420.2,"Оплачен",false,""]
[null,"2013-04-04",134,"Леонид",6,854.99,"Оплачен",false,""]
[null,"2013-04-04",135,"Глеб",4,900.62,"Оплачен",false,""]
[null,"2013-04-04",136,"Евгений",5,735.55,"Отменен",false,""]
[null,"2013-04-04",137,"Константин",9,657.45,"Отменен",false,""]
[null,"2013-04-04",138,"Роберт",3,900.62,"Отменен",false,""]
[null,"2013-04-04",139,"Роза",7,735.55,"Оплачен",false,""]
[null,"2013-04-04",140,"Дарья",5,945.55,"Оплачен",false,""]
[null,"2013-04-04",141,"Никита",5,700.5,"Оплачен",false,""]
[null,"2013-04-05",142,"Влад",7,100.99,"Оплачен",false,""]
[null,"2013-04-05",143,"Александра",4,200.54,"Отменен",false,""]
[null,"2013-04-06",144,"Игорь",4,345.55,"Отменен",false,""]
[null,"2013-04-06",145,"Кира",1,300.5,"Отменен",false,""]
[null,"2013-04-06",146,"Ульяна",10,100.99,"Отменен",false,""]
[null,"2013-04-06",147,"Артем",2,24.22,"Оплачен",false,""]
[null,"2013-04-06",148,"Тимофей",2,900.62,"Оплачен",false,""]
[null,"2013-04-06",149,"Степан",5,735.55,"Отменен",false,""]
[null,"2013-04-06",150,"Юрий",7,300.5,"Оплачен",false,""]
[null,"2013-04-06",151,"Анатолий",8,8000,"Оплачен",true,8000]
[null,"2013-04-06",152,"Герман",5,905.54,"Оплачен",false,""]
[null,"2013-04-06",153,"Екатерина",2,420.6,"Отменен",false,""]
[null,"2013-04-06",154,"Юрий",4,358.41,"Отменен",false,""]
[null,"2013-04-06",155,"Василий",2,400.99,"Отменен",false,""]
[null,"2013-04-06",156,"Федор",4,600.54999999999995,"Оплачен",false,""]
[null,"2013-04-06",157,"Ирина",8,900.55,"Оплачен",false,""]
[null,"2013-04-06",158,"Даниил",11,499.99,"Оплачен",false,""]
[null,"2013-04-06",159,"Александр",5,350.5,"Оплачен",false,""]
[null,"2013-04-06",160,"Евгений",2,300.5,"Отменен",false,""]
[null,"2013-04-06",161,"Егор",4,566.54999999999995,"Оплачен",false,""]
[null,"2013-04-06",162,"Семен",11,900.62,"Оплачен",false,""]
[null,"2013-04-07",163,"Кристина",3,735.55,"Отменен",false,""]
[null,"2013-04-07",164,"Яна",5,300.5,"Отменен",false,""]
[null,"2013-04-07",165,"Кирилл",1,396.64,"Оплачен",false,""]
[null,"2013-04-07",166,"Ульяна",6,332.55,"Оплачен",false,""]
[null,"2013-04-07",167,"Максим",5,2100.5500000000002,"Оплачен",true,2100.5500000000002]
[null,"2013-04-07",168,"Иван",3,999.41,"Оплачен",false,""]
[null,"2013-04-07",169,"Михаил",5,500.99,"Оплачен",false,""]
[null,"2013-04-07",170,"Леонид",8,800.55,"Отменен",false,""]
[null,"2013-04-07",171,"Владимир",8,350.55,"Оплачен",false,""]
[null,"2013-04-07",172,"Борис",15,347.98,"Оплачен",false,""]
[null,"2013-04-07",173,"Евгения",19,9421.9500000000007,"Оплачен",true,9421.9500000000007]
[null,"2013-04-07",174,"Ярослав",5,558.52,"Оплачен",false,""]
[null,"2013-04-07",175,"Наталья",7,424.41,"Отменен",false,""]
[null,"2013-04-07",176,"Галина",4,450.12,"Оплачен",false,""]
[null,"2013-04-07",177,"Степан",14,75.5,"Отменен",false,""]
[null,"2013-04-07",178,"Георгий",2,740.26,"Оплачен",false,""]
[null,"2013-04-07",179,"Дарья",5,900.5,"Отменен",false,""]
[null,"2013-04-07",180,"Герман",12,780.8,"Отменен",false,""]
[null,"2013-04-07",181,"Егор",3,963.6,"Оплачен",false,""]
[null,"2013-04-08",182,"Александра",2,2000.54,"Оплачен",true,2000.54]
[null,"2013-04-08",183,"Руслан",1,100.55,"Оплачен",false,""]
[null,"2013-04-08",184,"Матвей",5,945.55,"Оплачен",false,""]
[null,"2013-04-08",185,"Кира",2,700.5,"Оплачен",false,""]
[null,"2013-04-08",186,"Дарья",4,100.99,"Оплачен",false,""]
[null,"2013-04-08",187,"Галина",3,420.5,"Отменен",false,""]
[null,"2013-04-08",188,"Тимофей",5,700.8,"Оплачен",false,""]
[null,"2013-04-08",189,"Карина",2,120.4,"Оплачен",false,""]
[null,"2013-04-08",190,"Ростислав",3,366.41,"Оплачен",false,""]
[null,"2013-04-08",191,"Вадим",4,100.99,"Отменен",false,""]
[null,"2013-04-08",192,"Глеб",5,354.12,"Отменен",false,""]
[null,"2013-04-08",193,"Валерий",4,478.85,"Оплачен",false,""]
[null,"2013-04-08",194,"Святослав",1,600.54999999999995,"Оплачен",{"$f":"AND(G275=\"Оплачен\",F275>1000)","v":false},{"$f":"IF(AND(G275=\"Оплачен\",F275>1000),F275,\"\")","v":""}]
[null,"2013-04-08",195,"Татьяна",4,900.55,"Отменен",false,""]
[null,"2013-04-08",196,"Анжела",5,499.99,"Отменен",false,""]
[null,"2013-04-08",197,"Ян",1,350.5,"Оплачен",false,""]
[null,"2013-04-08",198,"Максим",12,478.88,"Отменен",false,""]
[null,"2013-04-08",199,"Василий",2,124.46,"Оплачен",false,""]
[null,"2013-04-08",200,"Семен",5,300.55,"Оплачен",false,""]
[null,"2013-04-08",201,"Родион",3,400.99,"Оплачен",false,""]
[null,"2013-04-09",202,"Роза",6,235.55,"Отменен",false,""]
[null,"2013-04-09",203,"Евгения",1,200.22,"Оплачен",false,""]
[null,"2013-04-09",204,"Светлана",2,150.25,"Отменен",false,""]
[null,"2013-04-09",205,"Лев",5,546.54999999999995,"Оплачен",false,""]
[null,"2013-04-09",206,"Георгий",2,507.99,"Отменен",false,""]
[null,"2013-04-09",207,"Григоий",4,100.25,"Оплачен",false,""]
[null,"2013-04-09",208,"Кристина",7,700.99,"Оплачен",false,""]
[null,"2013-04-09",209,"София",3,350.77,"Оплачен",false,""]
[null,"2013-04-09",210,"Влад",4,431.41,"Отменен",false,""]
[null,"2013-04-09",211,"Борис",2,200.5,"Оплачен",false,""]
[null,"2013-04-09",212,"Филипп",6,7200.2,"Отменен",false,""]
[null,"2013-04-09",213,"Даниил",2,400.99,"Оплачен",false,""]
[null,"2013-04-09",214,"Леонид",1,365.55,"Оплачен",false,""]
[null,"2013-04-09",215,"Валерий",1,300.5,"Оплачен",false,""]
[null,"2013-04-09",216,"Никита",8,2450.5500000000002,"Оплачен",true,2450.5500000000002]
[null,"2013-04-09",217,"Марк",3,100.99,"Оплачен",false,""]
[null,"2013-04-10",218,"Роза",4,420.5,"Отменен",false,""]
[null,"2013-04-10",219,"Сергей",2,99.99,"Отменен",false,""]
[null,"2013-04-10",220,"Семен",2,500.5,"Оплачен",false,""]
[null,"2013-04-10",221,"Михаил",8,9500.42,"Отменен",false,""]
[null,"2013-04-10",222,"Дмитрий",1,300.5,"Оплачен",false,""]
[null,"2013-04-10",223,"Федор",15,8900.42,"Оплачен",true,8900.42]
[null,"2013-04-10",224,"Светлана",3,20.100000000000001,"Оплачен",false,""]
[null,"2013-04-10",225,"Вадим",4,4000.45,"Отменен",false,""]
[null,"2013-04-10",226,"Наталья",2,72,"Оплачен",false,""]
[null,"2013-04-10",227,"Александр",7,355.4,"Оплачен",false,""]
[null,"2013-04-10",228,"Жанна",8,900.2,"Оплачен",false,""]
[null,"2013-04-10",229,"Евгения",3,3012.45,"Отменен",false,""]
[null,"2013-04-10",230,"Валерий",1,120.5,"Отменен",false,""]
[null,"2013-04-10",231,"Алла",5,75.5,"Оплачен",false,""]
[null,"2013-04-10",232,"Владимир",3,740.26,"Оплачен",false,""]
[null,"2013-04-10",233,"Александра",5,900.5,"Оплачен",false,""]
[null,"2013-04-10",234,"Ярослав",4,462,"Оплачен",false,""]
[null,"2013-04-10",235,"Анатолий",5,703.4,"Оплачен",false,""]
[null,"2013-04-10",236,"Иван",3,350.5,"Оплачен",false,""]
[null,"2013-04-10",237,"Руслан",5,126.41,"Отменен",false,""]
[null,"2013-04-10",238,"Михаил",2,1000.66,"Оплачен",true,1000.66]
[null,"2013-04-10",239,"Дарья",5,499.99,"Оплачен",false,""]
[null,"2013-04-10",240,"Дмитрий",18,8294.66,"Оплачен",true,8294.66]
[]
[null,null,null,null,null,null,null,"Средняя сумма крупного заказа",{"$f":"AVERAGE(I82:I321)","v":5228.2137499999999}]
[]
[null,null,null,null,null,null,null,"Максимальная сумма крупного заказа",{"$f":"MAX(I82:I321)","v":9654.5}]
[null,null,null,null,null,null,null,"Минимальная сумма крупного заказа",{"$f":"MIN(I82:I321)","v":1000.66}]

{"sheet":"Задачки. Таблица Пользователи","index":1,"n_rows":877,"n_cols":8,"rows_kept":877,"cut":false,"hidden":false,"merged":[]}
[]
[]
[]
[]
[]
[]
[]
[]
[]
[]
[]
[]
[]
[]
[]
[]
[]
[]
[]
[]
[]
[null,"ВШколе 657 - универсальное средство для общения одноклассников и знакомства в школе, которым ежедневно пользуются 8 человек."]
[null,"В примерах следует использовать функцию ЕСЛИ и логические выражения для отбора записей."]
[null,"1. Сколько учеников и учениц строго старше 14 лет."]
["И","2. Сколько учеников (пол \"м\") до 13 лет включительно."]
["И + СУММ","3. Сколько учеников (пол \"м\") в активном поиске старше 17 лет."]
["СРЗНАЧ","4. Средний возраст тех, кто считает, что в жизни главное Саморазвитие."]
["И + МИН","5. Кто зарегистрировался раньше всех среди девушек, которые считают, что главное в жизни это Семья и дети."]
["И + ИЛИ + СУММ","6. Сколько девушек в Активном поиске, которые считают что главное в жизни Наука и исследования или Красота и искусство."]
["Для отличников","7. Сколько учениц  в школе в возрасте от 15 до 17 лет у которых главное в жизни все кроме Спорт и хобби."]
[null,"8. … Впишите свой вопрос…."]
[null,"9. … Впишите свой вопрос…."]
[]
["id","Фамилия","Имя","Пол","Возраст","Главное в жизни","Отношения","Статус"]
[1,"Фаина","Иванишина","ж",12,"Деньги и слава","Без пары","Чмаффки!"]
[2,"Владислава","Авдонкина","ж",16,"Наука и исследования","В активном поиске","ЛЕТО!! Кончилось(((( АУ"]
[3,"Инесса","Юдакова","ж",13,"Красота и искусство","Встречаюсь","От вас столько же понимания, сколько от стены. Спасибо."]
[4,"Патрикей","Козадаев","м",11,"Деньги и слава","Без пары","Люби меня или ненавидь — но лично мне по барабану!"]
[5,"Елена","Фалина","ж",17,"Красота и искусство","Без пары","Где-то в доме есть такое тайное место, куда носки, пульты, ключи уходят умирать."]
[6,"Святослав","Стрелков","м",17,"Красота и искусство","Встречаюсь","Мои подружки самые лучшие!"]
[7,"Руслан","Лавринец","м",17,"Саморазвитие","В активном поиске","У кошек есть вкус. Раз дерет обои, значит, фигня Ваши обои!"]
[8,"Анастосия","Данчикова","ж",13,"Доброта и верность","Встречаюсь","Как я люблю осень!!!111"]
[9,"Артем","Гавришев","м",9,"Доброта и верность","Встречаюсь","Я говорю, что я самая лучая"]
[10,"Клара","Брагина","ж",12,"Доброта и верность","В активном поиске","и при встрече родных глаз, я опускаю свои и просто иду дальше"]
[11,"Авель","Забава","м",14,"Семья и дети","Без пары","Купила чай для похудения - ничего так, классно с пироженным идёт!"]
[12,"Ефрем","Чапурин","м",12,"Юмор и жизнелюбие","Не указано","Я знаю ты любишь меня!"]
[13,"Станислава","Давыдочкина","ж",10,"Саморазвитие","Не указано","Мир прекрасен"]
[14,"Жанна","Садовникова","ж",13,"Семья и дети","Встречаюсь","Так сильно люблю своих соседей! что даже музычку вот им включила громко чтоб слышали."]
[15,"Дормедонт","Авдиев","м",17,"Доброта и верность","В активном поиске","Пацаны ваще ребята, могете!"]
[16,"Богдан","Ершов","м",17,"Семья и дети","Не указано","А чего это тут такое у нас,а ?"]
[17,"Ксенофонт","Маканьковский","м",11,"Семья и дети","В активном поиске","Люби меня или ненавидь — но лично мне по барабану!"]
[18,"Тамара","Заикина","ж",11,"Юмор и жизнелюбие","Без пары","У кошек есть вкус. Раз дерет обои, значит, фигня Ваши обои!"]
[19,"Евгения","Эрекаева","ж",9,"Юмор и жизнелюбие","Встречаюсь","Я вроде и не люблю тебя, но скучаю без тебя, очень скучаю."]
[20,"Назар","Корнилов","м",11,"Спорт и хобби","Без пары","Ну лан, мне пора"]
[21,"Оксана","Ульянова","ж",8,"Саморазвитие","Без пары","У кошек есть вкус. Раз дерет обои, значит, фигня Ваши обои!"]
[22,"Валерия","Шабаршина","ж",15,"Саморазвитие","Не указано","Я не подарок!!! Я сюрприз)))"]
[23,"Жанна","Лайкина","ж",17,"Спорт и хобби","В активном поиске","Заткнись. Я знаю ты любишь меня!"]
[24,"Станислава","Белоусова","ж",18,"Красота и искусство","Не указано","шел как то медведь по лесу. Шел и никому не мешал. Вдруг видит машина горит, он сел в неё и сгорел..."]
[25,"Глеб","Дмитриев","м",14,"Саморазвитие","Встречаюсь","и при встрече родных глаз, я опускаю свои и просто иду дальше"]
[26,"Изольда","Галанова","ж",10,"Доброта и верность","В активном поиске","ЧМАФФКИ всех, всех люблю!!!А))))"]
[27,"Афинодор","Иваничев","м",12,"Красота и искусство","В активном поиске","нажал \"новая тема\" и создал ))"]
[28,"Евлампий","Жальба","м",13,"Деньги и слава","В активном поиске","У собак есть вкус!"]
[29,"Максимиан","Хазанович","м",11,"Наука и исследования","В активном поиске","От вас столько же понимания, сколько от стены. Спасибо."]
[30,"Ананий","Нестеров","м",15,"Спорт и хобби","Не указано","Не надо говорить, что я плохая. Просто найди лучше, чем я, и отстань."]
[31,"Ануфрий","Цареградский","м",11,"Семья и дети","В активном поиске","Ну и шо что ветер в голове - зато мысли всегда свежие!"]
[32,"Егор","Блинов","м",12,"Доброта и верность","В активном поиске","Мои подружки самые лучшие!"]
[33,"Святослав","Данюков","м",9,"Юмор и жизнелюбие","Встречаюсь","Я приехала)))))))))))))))"]
[34,"Ерофей","Ракоед","м",13,"Саморазвитие","В активном поиске","Я приехала с дачи"]
[35,"Рената","Яворова","ж",13,"Семья и дети","Не указано","Ну и шо что ветер в голове - зато мысли всегда свежие!"]
[36,"Егор","Алексеев","м",10,"Деньги и слава","Без пары","Так сильно люблю своих соседей! что даже музычку вот им включила громко чтоб слышали."]
[37,"Гиацинт","Гагрин","м",16,"Спорт и хобби","В активном поиске","Меня боятся миллионы."]
[38,"Лидия","Соловьёва","ж",14,"Саморазвитие","В активном поиске","Где-то в доме есть такое тайное место, куда носки, пульты, ключи уходят умирать."]
[39,"Ярослав","Пестов","м",14,"Юмор и жизнелюбие","Не указано","Абажаю тебя, моя подрушка. Лучшая!"]
[40,"Святослав","Шубин","м",8,"Саморазвитие","Без пары","Я говорю, что я самая лучая"]
[41,"Владлена","Савилова","ж",9,"Доброта и верность","В активном поиске","Меня все время преследуют умные мысли...но я быстрее!!!"]
[42,"Пафнутий","Ульяница","м",13,"Наука и исследования","Встречаюсь","Меня не надо менять, меня надо понять."]
[43,"Валерия","Дарьина","ж",8,"Семья и дети","Без пары","Введите здесь текст вашего статуса"]
[44,"Кирилл","Ефимов","м",8,"Деньги и слава","Не указано","Я могу изменить свой статус Вконтакте… Это одна из немногих вещей, изменяющихся так легко…"]
[45,"Тимур","Кулагин","м",12,"Спорт и хобби","Встречаюсь","Меня не надо менять, меня надо понять."]
[46,"Беатриса","Нагишкина","ж",8,"Саморазвитие","Без пары","Так сильно люблю своих соседей! что даже музычку вот им включила громко чтоб слышали."]
[47,"Станислава","Каверзина","ж",11,"Красота и искусство","В активном поиске","когда парень говорит что любит это не значит что он любит тебя"]
[48,"Изабелла","Цагараева","ж",14,"Наука и исследования","Без пары","УЧЕНЬЕ свет, а за свет нужно платить"]
[49,"Евстахий","Кадочников","м",16,"Саморазвитие","В активном поиске","Ужин при свечах - завтрак при огнетушителях"]
[50,"Влада","Лабутина","ж",14,"Наука и исследования","Не указано","Нигде не ведут себя так вежливо, как в очереди к стоматологу...  "]
[51,"Флорентин","Овсянников","м",9,"Спорт и хобби","Без пары","Не осуждайте чужое прошлое, вы не знаете своё будущее..."]
[52,"Кристина","Овидиева","ж",11,"Юмор и жизнелюбие","Встречаюсь","Абажаю тебя, моя подрушка. Лучшая!"]
[53,"Марк","Зиновьев","м",9,"Красота и искусство","Не указано"]
[54,"Парфён","Чеботков","м",15,"Деньги и слава","Не указано","Не знаю как быть(("]
[55,"Ефрем","Ларионов","м",8,"Юмор и жизнелюбие","Без пары","ЛЕТО!!"]
[56,"Анастасия","Иваньшина","ж",11,"Красота и искусство","Без пары","Я никогда не мечтал о чуде — И вы успокойтесь — и забудьте про него."]
[57,"Тимур","Королёв","м",9,"Наука и исследования","Встречаюсь","Уважительное отношение к окружающим, вот что так ценно"]
[58,"Евдокия","Ильина","ж",18,"Саморазвитие","В активном поиске","Где-то в доме есть такое тайное место, куда носки, пульты, ключи уходят умирать."]
[59,"Андрей","Рябов","м",9,"Доброта и верность","Без пары","ЧМАФФКИ всех, всех люблю!!!А))))"]
[60,"Денис","Ларионов","м",11,"Саморазвитие","Не указано","У кошек есть вкус. Раз дерет обои, значит, фигня Ваши обои!"]
[61,"Лидия","Иванищук","ж",9,"Юмор и жизнелюбие","В активном поиске","Я говорю, что я самая лучая"]
[62,"Мартиниан","Саватеев","м",13,"Деньги и слава","Без пары","Уважительное отношение к окружающим, вот что так ценно"]
[63,"Роман","Лобанов","м",15,"Юмор и жизнелюбие","Встречаюсь","загадывайте желание звезда упала)))"]
[64,"Людмила","Узбекова","ж",14,"Красота и искусство","Встречаюсь","шел как то медведь по лесу. Шел и никому не мешал. Вдруг видит машина горит, он сел в неё и сгорел..."]
[65,"Клавдия","Аксёнова","ж",11,"Саморазвитие","Не указано","Я никогда не мечтал о чуде — И вы успокойтесь — и забудьте про него."]
[66,"Бонифат","Авдотьин","м",9,"Красота и искусство","В активном поиске","Абажаю контактик!"]
[67,"Каролина","Евстюхина","ж",10,"Спорт и хобби","Без пары","Я приехала)))))))))))))))"]
[68,"Владислав","Гуляев","м",15,"Наука и исследования","Не указано","Пацаны ваще ребята, могете!"]
[69,"Мавродий","Фавсткин","м",17,"Спорт и хобби","В активном поиске","нажал \"новая тема\" и создал ))"]
[70,"Василиса","Вадьяева","ж",9,"Юмор и жизнелюбие","Без пары","Как я люблю осень!!!11111"]
[71,"Рувим","Нагорский","м",17,"Красота и искусство","Не указано","Не осуждайте чужое прошлое, вы не знаете своё будущее..."]
[72,"Тристан","Цинговатов","м",18,"Семья и дети","Без пары","Не надо говорить, что я плохая. Просто найди лучше, чем я, и отстань."]
[73,"Полиект","Наврозов","м",16,"Доброта и верность","Не указано","Пацаны ваще ребята, могете!"]
[74,"Ярослав","Фалелеев","м",10,"Спорт и хобби","В активном поиске","…"]
[75,"Парфентий","Ракитников","м",11,"Семья и дети","Встречаюсь","От вас столько же понимания, сколько от стены. Спасибо."]
[76,"Рената","Мамонтова","ж",8,"Доброта и верность","В активном поиске","Где-то в доме есть такое тайное место, куда носки, пульты, ключи уходят умирать."]
[77,"Полина","Удалова","ж",14,"Юмор и жизнелюбие","В активном поиске","Ужин при свечах - завтрак при огнетушителях"]
[78,"Владимир","Овчаров","м",10,"Спорт и хобби","В активном поиске","Не надо говорить, что я плохая. Просто найди лучше, чем я, и отстань."]
[79,"Раиса","Казаринова","ж",12,"Саморазвитие","Встречаюсь","…"]
[80,"Конон","Гавришов","м",16,"Деньги и слава","Не указано","Искусственный интеллект – фигня по сравнению с естественной глупостью."]
[81,"Давид","Дроздов","м",13,"Деньги и слава","Не указано","Я приехала с дачи"]
[82,"Доминик","Бабенко","м",10,"Саморазвитие","Встречаюсь","и при встрече родных глаз, я опускаю свои и просто иду дальше"]
[83,"Маргарита","Набокина","ж",9,"Доброта и верность","В активном поиске","От вас столько же понимания, сколько от стены. Спасибо."]
[84,"Милана","Загудаева","ж",11,"Наука и исследования","Не указано","…"]
[85,"Таисия","Казакова","ж",17,"Деньги и слава","Не указано","Я приехала с дачи"]
[86,"Меркул","Огарев","м",9,"Семья и дети","Не указано","Не осуждайте чужое прошлое, вы не знаете своё будущее..."]
[87,"Арсений","Васильев","м",11,"Саморазвитие","Встречаюсь","Как я люблю осень!!!11111"]
[88,"Егор","Овчинников","м",12,"Юмор и жизнелюбие","В активном поиске","ЛЕТО!!"]
[89,"Андрей","Зимин","м",11,"Спорт и хобби","В активном поиске","Купила чай для похудения - ничего так, классно с пироженным идёт!"]
[90,"Еремей","Савкин","м",8,"Юмор и жизнелюбие","Встречаюсь","Искусственный интеллект – фигня по сравнению с естественной глупостью."]
[91,"Элеонора","Иванихина","ж",13,"Спорт и хобби","В активном поиске","Нигде не ведут себя так вежливо, как в очереди к стоматологу...  "]
[92,"Мартьян","Экспериментов","м",9,"Доброта и верность","В активном поиске","Я не подарок!!! Я сюрприз)))"]
[93,"Владислав","Горбунов","м",11,"Юмор и жизнелюбие","В активном поиске","когда парень говорит что любит это не значит что он любит тебя"]
[94,"Владислава","Жебрунова","ж",15,"Доброта и верность","Не указано","Искусственный интеллект – фигня по сравнению с естественной глупостью."]
[95,"Вышеслав","Павленко","м",17,"Деньги и слава","В активном поиске","шел как то медведь по лесу. Шел и никому не мешал. Вдруг видит машина горит, он сел в неё и сгорел..."]
[96,"Ермилий","Ханжин","м",13,"Доброта и верность","Встречаюсь","Меня боятся миллионы."]
[97,"Увар","Кадкин","м",8,"Семья и дети","Встречаюсь","Я могу изменить свой статус Вконтакте… Это одна из немногих вещей, изменяющихся так легко…"]
[98,"Владислава","Найденова","ж",15,"Саморазвитие","Встречаюсь","Абажаю контактик!"]
[99,"Сократ","Огановский","м",10,"Саморазвитие","Без пары","Я говорю, что я самая лучая"]
[100,"Марта","Горбунова","ж",8,"Доброта и верность","В активном поиске","Так сильно люблю своих соседей! что даже музычку вот им включила громко чтоб слышали."]
[101,"Владислава","Юренева","ж",9,"Саморазвитие","Без пары","Я вроде и не люблю тебя, но скучаю без тебя, очень скучаю."]
[102,"Инесса","Цепова","ж",14,"Доброта и верность","В активном поиске","С каждым годом зубные пасты становятся все лучше, а зубы все хуже."]
[103,"Зинаида","Савчук","ж",8,"Красота и искусство","Не указано","Я не подарок!!! Я сюрприз)))"]
[104,"Елизавета","Зазиркина","ж",9,"Доброта и верность","Без пары","Абажаю тебя, моя подрушка. Лучшая!"]
[105,"Илья","Белоусов","м",15,"Саморазвитие","Не указано","УЧЕНЬЕ свет, а за свет нужно платить"]
[106,"Альбина","Стрелкова","ж",17,"Красота и искусство","Не указано","Абажаю контактик!"]
[107,"Гремислав","Талабанов","м",8,"Деньги и слава","Встречаюсь","Где-то в доме есть такое тайное место, куда носки, пульты, ключи уходят умирать."]
[108,"Владислав","Фёдоров","м",15,"Красота и искусство","Без пары","Меня все время преследуют умные мысли...но я быстрее!!!"]
[109,"Изабелла","Хабибулина","ж",16,"Юмор и жизнелюбие","В активном поиске","Пацаны ваще ребята, могете!"]
[110,"Давид","Панов","м",9,"Саморазвитие","В активном поиске","Где-то в доме есть такое тайное место, куда носки, пульты, ключи уходят умирать."]
[111,"Раиса","Вакулова","ж",12,"Доброта и верность","Без пары","Уважительное отношение к окружающим, вот что так ценно"]
[112,"Маргарита","Цапурина","ж",10,"Юмор и жизнелюбие","В активном поиске","Где-то в доме есть такое тайное место, куда носки, пульты, ключи уходят умирать."]
[113,"Евстигней","Яворов","м",15,"Наука и исследования","Без пары","Ну лан, мне пора"]
[114,"Валентина","Гавриличева","ж",11,"Спорт и хобби","Не указано","Я вроде и не люблю тебя, но скучаю без тебя, очень скучаю."]
[115,"Бронислава","Ванютина","ж",17,"Семья и дети","Не указано","Ужин при свечах - завтрак при огнетушителях"]
[116,"Николай","Данщин","м",10,"Саморазвитие","Без пары","шел как то медведь по лесу. Шел и никому не мешал. Вдруг видит машина горит, он сел в неё и сгорел..."]
[117,"Кирилл","Крюков","м",9,"Деньги и слава","Не указано","…"]
[118,"Никита","Казаков","м",18,"Саморазвитие","Без пары","ушла в школу…"]
[119,"Елена","Лазухина","ж",16,"Саморазвитие","В активном поиске","Я приехала)))))))))))))))"]
[120,"Егор","Федотов","м",9,"Деньги и слава","Не указано","Я не подарок!!! Я сюрприз)))"]
[121,"Анастосия","Евдакова","ж",15,"Доброта и верность","Встречаюсь","Введите здесь текст вашего статуса"]
[122,"Луиза","Угарова","ж",16,"Наука и исследования","Встречаюсь","Я могу изменить свой статус Вконтакте… Это одна из немногих вещей, изменяющихся так легко…"]
[123,"Аверкий","Талалихин","м",9,"Саморазвитие","Не указано","Меня боятся миллионы."]
[124,"Арсений","Бобров","м",17,"Доброта и верность","Без пары","Искусственный интеллект – фигня по сравнению с естественной глупостью."]
[125,"Адам","Ванюков","м",15,"Семья и дети","В активном поиске","…"]
[126,"Терентий","Копылов","м",13,"Деньги и слава","В активном поиске","Пацаны ваще ребята, могете!"]
[127,"Валентина","Кавелина","ж",17,"Семья и дети","Встречаюсь","Мои подружки самые лучшие!"]
[128,"Богдан","Устинов","м",17,"Юмор и жизнелюбие","В активном поиске","Ужин при свечах - завтрак при огнетушителях"]
[129,"Тимофей","Яковлев","м",16,"Юмор и жизнелюбие","В активном поиске","Не знаю как быть(("]
[130,"Лилия","Ванкеева","ж",16,"Семья и дети","Без пары","и при встрече родных глаз, я опускаю свои и просто иду дальше"]
[131,"Мечислав","Закржевский","м",11,"Деньги и слава","Без пары","Я никогда не мечтал о чуде — И вы успокойтесь — и забудьте про него."]
[132,"Ярослав","Горшков","м",17,"Саморазвитие","Встречаюсь","нажал \"новая тема\" и создал ))"]
[133,"Варнава","Никитин","м",11,"Саморазвитие","Встречаюсь","Я говорю, что я самая лучая"]
[134,"Тимур","Заборовский","м",9,"Юмор и жизнелюбие","Без пары","Абажаю контактик!"]
[135,"Элеонора","Юрлина","ж",18,"Юмор и жизнелюбие","В активном поиске","Говорят что чужую жизнь прожить нельзя, но испортить все-таки можно…"]
[136,"Даниил","Денисов","м",18,"Деньги и слава","Без пары","Уважительное отношение к окружающим, вот что так ценно"]
[137,"Парфений","Завалишин","м",18,"Саморазвитие","Без пары","С каждым годом зубные пасты становятся все лучше, а зубы все хуже."]
[138,"Мирослава","Исаева","ж",15,"Саморазвитие","Без пары","Нигде не ведут себя так вежливо, как в очереди к стоматологу...  "]
[139,"Дмитрий","Кононов","м",11,"Наука и исследования","В активном поиске","Мои подружки самые лучшие!"]
[140,"Ипатий","Козявкин","м",17,"Спорт и хобби","Без пары","Искусственный интеллект – фигня по сравнению с естественной глупостью."]
[141,"Даниил","Рогов","м",8,"Юмор и жизнелюбие","Встречаюсь","загадывайте желание звезда упала)))"]
[142,"Макар","Котов","м",10,"Красота и искусство","Без пары","Ужин при свечах - завтрак при огнетушителях"]
[143,"Викторий","Далматов","м",18,"Саморазвитие","В активном поиске","Введите здесь текст вашего статуса"]
[144,"Матвей","Лебедев","м",12,"Саморазвитие","Без пары","Ну и шо что ветер в голове - зато мысли всегда свежие!"]
[145,"Полиевкт","Лавренцев","м",8,"Деньги и слава","Встречаюсь","Люби меня или ненавидь — но лично мне по барабану!"]
[146,"Назар","Суворов","м",8,"Доброта и верность","Не указано","Искусственный интеллект – фигня по сравнению с естественной глупостью."]
[147,"Симон","Маврычев","м",15,"Деньги и слава","Без пары","шел как то медведь по лесу. Шел и никому не мешал. Вдруг видит машина горит, он сел в неё и сгорел..."]
[148,"Вероника","Ульянова","ж",9,"Красота и искусство","Встречаюсь","ЛЕТО!!"]
[149,"Арсений","Князев","м",14,"Семья и дети","Встречаюсь","Купил чай для похудения - ничего так, классно с пироженным идёт!"]
[150,"Аввакум","Копылов","м",18,"Юмор и жизнелюбие","Без пары","Ну лан, мне пора"]
[151,"Агафангел","Харичкин","м",17,"Саморазвитие","Встречаюсь","загадывайте желание звезда упала)))"]
[152,"Александр","Калинин","м",13,"Спорт и хобби","Без пары","Меня не надо менять, меня надо понять."]
[153,"Константин","Агафонов","м",11,"Семья и дети","Не указано","шел как то медведь по лесу. Шел и никому не мешал. Вдруг видит машина горит, он сел в неё и сгорел..."]
[154,"Ярослав","Осипов","м",14,"Семья и дети","Не указано","Меня все время преследуют умные мысли...но я быстрее!!!"]
[155,"Порфир","Хазан","м",9,"Деньги и слава","Не указано","…"]
[156,"Регина","Павлюхина","ж",16,"Семья и дети","Встречаюсь","Ну и шо что ветер в голове - зато мысли всегда свежие!"]
[157,"Алексей","Кайданов","м",9,"Саморазвитие","Без пары","Заткнись. Я знаю ты любишь меня!"]
[158,"Авель","Бабич","м",14,"Доброта и верность","Встречаюсь","Так сильно люблю своих соседей! что даже музычку вот им включила громко чтоб слышали."]
[159,"Илья","Горбачёв","м",9,"Доброта и верность","Встречаюсь","Заткнись. Я знаю ты любишь меня!"]
[160,"Александр","Уваров","м",8,"Красота и искусство","Не указано","Я говорю, что я самая лучая"]
[161,"Ярослав","Баранов","м",10,"Семья и дети","В активном поиске","ЛЕТО!!"]
[162,"Евдокия","Загоскина","ж",11,"Наука и исследования","Не указано","ЧМАФФКИ всех, всех люблю!!!А))))"]
[163,"Елизавета","Шаляпина","ж",8,"Наука и исследования","В активном поиске","Я говорю, что я самая лучая"]
[164,"Богдан","Наумов","м",13,"Наука и исследования","Встречаюсь"]
[165,"Вероника","Улыбаева","ж",12,"Доброта и верность","Встречаюсь"]
[166,"Спартак","Макаровский","м",14,"Доброта и верность","Без пары","Ну и шо что ветер в голове - зато мысли всегда свежие!"]
[167,"Валерия","Ивахина","ж",16,"Наука и исследования","Не указано","Ну и шо что ветер в голове - зато мысли всегда свежие!"]
[168,"Стела","Цибулькина","ж",17,"Наука и исследования","Встречаюсь","Мои подружки самые лучшие!"]
[169,"Алексей","Сысоев","м",10,"Саморазвитие","Без пары","Меня боятся миллионы."]
[170,"Палладий","Угринов","м",13,"Доброта и верность","Встречаюсь","Как я люблю осень!!!11111"]
[171,"Изабелла","Колобова","ж",15,"Красота и искусство","Встречаюсь","Купила чай для похудения - ничего так, классно с пироженным идёт!"]
[172,"Аверьян","Жарков","м",9,"Спорт и хобби","Встречаюсь","Уважительное отношение к окружающим, вот что так ценно"]
[173,"Мария","Юрлина","ж",18,"Саморазвитие","Не указано","Не надо говорить, что я плохая. Просто найди лучше, чем я, и отстань."]
[174,"Зинаида","Бажова","ж",12,"Деньги и слава","В активном поиске","Люби меня или ненавидь — но лично мне по барабану!"]
[175,"Кириак","Гаев","м",12,"Красота и искусство","Не указано","Абажаю контактик!"]
[176,"Егор","Якушев","м",9,"Спорт и хобби","Встречаюсь","шел как то медведь по лесу. Шел и никому не мешал. Вдруг видит машина горит, он сел в неё и сгорел..."]
[177,"Назар","Данилов","м",9,"Красота и искусство","В активном поиске","Как я люблю осень!!!11111"]
[178,"Владислав","Самсонов","м",9,"Спорт и хобби","Без пары","Я могу изменить свой статус Вконтакте… Это одна из немногих вещей, изменяющихся так легко…"]
[179,"Трифон","Цапыгин","м",16,"Семья и дети","Не указано","Как я люблю осень!!!11111"]
[180,"Иван","Родионов","м",18,"Семья и дети","Встречаюсь","Введите здесь текст вашего статуса"]
[181,"Роман","Шамонин","м",12,"Доброта и верность","Без пары","Я никогда не мечтал о чуде — И вы успокойтесь — и забудьте про него."]
[182,"Клара","Загородных","ж",17,"Саморазвитие","В активном поиске","шел как то медведь по лесу. Шел и никому не мешал. Вдруг видит машина горит, он сел в неё и сгорел..."]
[183,"Александр","Исаков","м",14,"Деньги и слава","В активном поиске","Как я люблю осень!!!11111"]
[184,"Лилия","Муравьёва","ж",11,"Саморазвитие","В активном поиске","Скучаю…."]
[185,"Дмитрий","Евдокимов","м",9,"Саморазвитие","Не указано","Ну лан, мне пора"]
[186,"Матвей","Селивёрстов","м",17,"Красота и искусство","В активном поиске","Нигде не ведут себя так вежливо, как в очереди к стоматологу...  "]
[187,"Геронтий","Данилишин","м",18,"Красота и искусство","Не указано","и при встрече родных глаз, я опускаю свои и просто иду дальше"]
[188,"Давид","Поляков","м",13,"Спорт и хобби","В активном поиске","Не осуждайте чужое прошлое, вы не знаете своё будущее..."]
[189,"Антиох","Дарюсин","м",13,"Наука и исследования","Встречаюсь","Абажаю тебя, моя подрушка. Лучшая!"]
[190,"Роман","Юдин","м",14,"Наука и исследования","Не указано","и при встрече родных глаз, я опускаю свои и просто иду дальше"]
[191,"Максим","Блохин","м",17,"Наука и исследования","Не указано","Как я люблю осень!!!11111"]
[192,"Александр","Назаров","м",12,"Саморазвитие","Встречаюсь","…"]
[193,"Флорентин","Данов","м",14,"Доброта и верность","Встречаюсь","когда парень говорит что любит это не значит что он любит тебя"]
[194,"Онуфрий","Лавренко","м",18,"Деньги и слава","Без пары","Мои подружки самые лучшие!"]
[195,"Никита","Ковалёв","м",14,"Саморазвитие","В активном поиске","Я никогда не мечтал о чуде — И вы успокойтесь — и забудьте про него."]
[196,"Варнава","Харлачов","м",11,"Красота и искусство","Встречаюсь","Меня все время преследуют умные мысли...но я быстрее!!!"]
[197,"Фалалей","Церерин","м",16,"Семья и дети","В активном поиске","и при встрече родных глаз, я опускаю свои и просто иду дальше"]
[198,"Тамара","Узлова","ж",14,"Доброта и верность","Без пары","ЧМАФФКИ всех, всех люблю!!!А))))"]
[199,"Иван","Прохоров","м",9,"Саморазвитие","Не указано","Я никогда не мечтал о чуде — И вы успокойтесь — и забудьте про него."]
[200,"Лучезар","Мазилов","м",9,"Красота и искусство","Встречаюсь","Я говорю, что я самая лучая"]
[201,"Даниил","Шарапов","м",9,"Деньги и слава","Встречаюсь","и при встрече родных глаз, я опускаю свои и просто иду дальше"]
[202,"Алексей","Гаев","м",8,"Красота и искусство","В активном поиске","Меня все время преследуют умные мысли...но я быстрее!!!"]
[203,"Артем","Попов","м",14,"Красота и искусство","Не указано","Меня боятся миллионы."]
[204,"Абросим","Юрлин","м",15,"Красота и искусство","В активном поиске","Не знаю как быть(("]
[205,"Наталья","Часовитина","ж",10,"Саморазвитие","Не указано","Я никогда не мечтал о чуде — И вы успокойтесь — и забудьте про него."]
[206,"Авдей","Евстифеев","м",15,"Деньги и слава","Встречаюсь","Я могу изменить свой статус Вконтакте… Это одна из немногих вещей, изменяющихся так легко…"]
[207,"Борис","Железников","м",17,"Спорт и хобби","Без пары","Эти диалоги, которым не суждено состояться, так и крутятся у меня в голове."]
[208,"Сильван","Ульянов","м",12,"Красота и искусство","Встречаюсь","Ну и шо что ветер в голове - зато мысли всегда свежие!"]
[209,"Элеонора","Игнатова","ж",18,"Наука и исследования","Без пары","когда парень говорит что любит это не значит что он любит тебя"]
[210,"Тимофей","Лыткин","м",12,"Саморазвитие","Не указано","когда девушка говорит что любит это не значит что он любит тебя"]
[211,"Светлана","Харитошина","ж",10,"Саморазвитие","Без пары","Меня боятся миллионы."]
[212,"Михаил","Доронин","м",13,"Доброта и верность","Без пары","…"]
[213,"Таисия","Бабанина","ж",12,"Семья и дети","Не указано","Пацаны ваще ребята, могете!"]
[214,"Хрисанф","Уланов","м",11,"Деньги и слава","Не указано","Уважительное отношение к окружающим, вот что так ценно"]
[215,"Веньямин","Павлюк","м",18,"Саморазвитие","Встречаюсь","Ну лан, мне пора"]
[216,"Ростислав","Разамасцев","м",9,"Семья и дети","В активном поиске","Абажаю тебя, моя подрушка. Лучшая!"]
[217,"Зиновий","Радюк","м",8,"Семья и дети","В активном поиске","Я вроде и не люблю тебя, но скучаю без тебя, очень скучаю."]
[218,"Кристина","Файбисевич","ж",18,"Юмор и жизнелюбие","Встречаюсь","шел как то медведь по лесу. Шел и никому не мешал. Вдруг видит машина горит, он сел в неё и сгорел..."]
[219,"Максимилиан","Крюков","м",9,"Доброта и верность","Встречаюсь","Люби меня или ненавидь — но лично мне по барабану!"]
[220,"Рената","Обуткова","ж",14,"Семья и дети","Не указано","шел как то медведь по лесу. Шел и никому не мешал. Вдруг видит машина горит, он сел в неё и сгорел..."]
[221,"Василиса","Загибалова","ж",11,"Деньги и слава","Встречаюсь","нажал \"новая тема\" и создал ))"]
[222,"Назар","Игнатов","м",17,"Юмор и жизнелюбие","В активном поиске","Не знаю как быть(("]
[223,"Агапий","Евстафьев","м",13,"Спорт и хобби","Встречаюсь","Абажаю контактик!"]
[224,"Евдокия","Овтухова","ж",14,"Наука и исследования","Без пары","Меня все время преследуют умные мысли...но я быстрее!!!"]
[225,"Матвей","Гаганов","м",8,"Наука и исследования","В активном поиске","Абажаю тебя, моя подрушка. Лучшая!"]
[226,"Таисия","Талаболина","ж",12,"Деньги и слава","Не указано","Уважительное отношение к окружающим, вот что так ценно"]
[227,"Татьяна","Яворова","ж",11,"Спорт и хобби","В активном поиске","Меня боятся миллионы."]
[228,"Даниил","Архипов","м",11,"Юмор и жизнелюбие","Не указано","Я никогда не мечтал о чуде — И вы успокойтесь — и забудьте про него."]
[229,"Вячеслав","Ваганов","м",17,"Наука и исследования","Встречаюсь","когда парень говорит что любит это не значит что он любит тебя"]
[230,"Марк","Красильников","м",15,"Красота и искусство","Не указано","нажал \"новая тема\" и создал ))"]
[231,"Каролина","Юдакова","ж",8,"Красота и искусство","Встречаюсь","и при встрече родных глаз, я опускаю свои и просто иду дальше"]
[232,"Эмилия","Галанина","ж",13,"Красота и искусство","В активном поиске","когда парень говорит что любит это не значит что он любит тебя"]
[233,"Эвелина","Бадыгина","ж",11,"Деньги и слава","Без пары","шел как то медведь по лесу. Шел и никому не мешал. Вдруг видит машина горит, он сел в неё и сгорел..."]
[234,"Евдокия","Авдиева","ж",12,"Красота и искусство","Без пары","и при встрече родных глаз, я опускаю свои и просто иду дальше"]
[235,"Алексей","Воронцов","м",17,"Наука и исследования","В активном поиске","Мои подружки самые лучшие!"]
[236,"Сидор","Часоводов","м",10,"Юмор и жизнелюбие","Не указано","Не осуждайте чужое прошлое, вы не знаете своё будущее..."]
[237,"Иван","Мамонтов","м",17,"Наука и исследования","Без пары","Нигде не ведут себя так вежливо, как в очереди к стоматологу...  "]
[238,"Кирилл","Мухин","м",8,"Семья и дети","Без пары","Эти диалоги, которым не суждено состояться, так и крутятся у меня в голове."]
[239,"Лада","Шаврина","ж",14,"Семья и дети","Без пары","От вас столько же понимания, сколько от стены. Спасибо."]
[240,"Селифан","Евсюнин","м",18,"Доброта и верность","В активном поиске","Я не подарок!!! Я сюрприз)))"]
[241,"Флавиан","Уварин","м",16,"Красота и искусство","Встречаюсь","ушла в школу…"]
[242,"Диана","Кадулина","ж",8,"Доброта и верность","Встречаюсь","УЧЕНЬЕ свет, а за свет нужно платить"]
[243,"Изольда","Хаина","ж",16,"Деньги и слава","Не указано","Не осуждайте чужое прошлое, вы не знаете своё будущее..."]
[244,"Евдокия","Базыкина","ж",16,"Спорт и хобби","В активном поиске","и при встрече родных глаз, я опускаю свои и просто иду дальше"]
[245,"Авдей","Хаймин","м",13,"Саморазвитие","Без пары","Говорят что чужую жизнь прожить нельзя, но испортить все-таки можно…"]
[246,"Полина","Фечина","ж",17,"Наука и исследования","Без пары","когда парень говорит что любит это не значит что он любит тебя"]
[247,"Азалия","Забродова","ж",8,"Деньги и слава","Встречаюсь","когда парень говорит что любит это не значит что он любит тебя"]
[248,"Илья","Куликов","м",17,"Саморазвитие","Не указано","Купила чай для похудения - ничего так, классно с пироженным идёт!"]
[249,"Глеб","Беспалов","м",18,"Наука и исследования","Встречаюсь","Так сильно люблю своих соседей! что даже музычку вот им включила громко чтоб слышали."]
[250,"Парфений","Иваньшин","м",14,"Доброта и верность","Встречаюсь","загадывайте желание звезда упала)))"]
[251,"Артамон","Блинов","м",15,"Красота и искусство","Без пары","Меня не надо менять, меня надо понять."]
[252,"Панфил","Овдеенко","м",11,"Юмор и жизнелюбие","Не указано","нажал \"новая тема\" и создал ))"]
[253,"Александр","Носков","м",16,"Спорт и хобби","В активном поиске","Искусственный интеллект – фигня по сравнению с естественной глупостью."]
[254,"Никита","Зыков","м",15,"Саморазвитие","Не указано","С каждым годом зубные пасты становятся все лучше, а зубы все хуже."]
[255,"Лиана","Ваничкина","ж",13,"Семья и дети","Без пары","Эти диалоги, которым не суждено состояться, так и крутятся у меня в голове."]
[256,"Гордей","Мазицын","м",10,"Доброта и верность","Встречаюсь","Я приехала)))))))))))))))"]
[257,"Иван","Потапов","м",15,"Семья и дети","Не указано","Уважительное отношение к окружающим, вот что так ценно"]
[258,"Денис","Большаков","м",8,"Доброта и верность","Встречаюсь","Купила чай для похудения - ничего так, классно с пироженным идёт!"]
[259,"Пармен","Баранов","м",11,"Саморазвитие","Не указано","Меня боятся миллионы."]
[260,"Асаф","Фальковский","м",8,"Юмор и жизнелюбие","Не указано","Ну лан, мне пора"]
[261,"Андрей","Савельев","м",9,"Семья и дети","В активном поиске","Ну лан, мне пора"]
[262,"Мартимьян","Файвиш","м",18,"Красота и искусство","В активном поиске","Я вроде и не люблю тебя, но скучаю без тебя, очень скучаю."]
[263,"Марк","Меркушев","м",13,"Наука и исследования","В активном поиске","Ужин при свечах - завтрак при огнетушителях"]
[264,"Алевтина","Магеркина","ж",13,"Доброта и верность","В активном поиске","Искусственный интеллект – фигня по сравнению с естественной глупостью."]
[265,"Богдан","Марков","м",13,"Саморазвитие","Не указано","ЛЕТО!!"]
[266,"Памфилий","Григорьев","м",16,"Красота и искусство","Не указано","От вас столько же понимания, сколько от стены. Спасибо."]
[267,"Илья","Брагин","м",15,"Юмор и жизнелюбие","В активном поиске","Купила чай для похудения - ничего так, классно с пироженным идёт!"]
[268,"Жанна","Петрова","ж",12,"Наука и исследования","Встречаюсь","ЧМАФФКИ всех, всех люблю!!!А))))"]
[269,"Беатриса","Колесникова","ж",15,"Спорт и хобби","В активном поиске","Я могу изменить свой статус Вконтакте… Это одна из немногих вещей, изменяющихся так легко…"]
[270,"Владлена","Жадобина","ж",14,"Семья и дети","Без пары","Говорят что чужую жизнь прожить нельзя, но испортить все-таки можно…"]
[271,"Владислава","Цвирко","ж",11,"Семья и дети","Не указано","С каждым годом зубные пасты становятся все лучше, а зубы все хуже."]
[272,"Татьяна","Вишнякова","ж",13,"Деньги и слава","Встречаюсь","Абажаю тебя, моя подрушка. Лучшая!"]
[273,"Ульяна","Лыткина","ж",13,"Саморазвитие","В активном поиске","Ну лан, мне пора"]
[274,"Марат","Радин","м",13,"Деньги и слава","Встречаюсь","Заткнись. Я знаю ты любишь меня!"]
[275,"Оскар","Козявкин","м",17,"Красота и искусство","Встречаюсь","Не осуждайте чужое прошлое, вы не знаете своё будущее..."]
[276,"Лилия","Евдокимова","ж",18,"Наука и исследования","Без пары","Заткнись. Я знаю ты любишь меня!"]
[277,"Флорентий","Гаврилин","м",18,"Красота и искусство","Встречаюсь","загадывайте желание звезда упала)))"]
[278,"Кирилл","Капустин","м",12,"Наука и исследования","В активном поиске","Нигде не ведут себя так вежливо, как в очереди к стоматологу...  "]
[279,"Максим","Максимов","м",15,"Саморазвитие","Встречаюсь","когда парень говорит что любит это не значит что он любит тебя"]
[280,"Екатерина","Южина","ж",17,"Красота и искусство","Не указано","ушла в школу…"]
[281,"Эвелина","Павленкова","ж",12,"Красота и искусство","Встречаюсь","От вас столько же понимания, сколько от стены. Спасибо."]
[282,"Федот","Юричев","м",11,"Спорт и хобби","Без пары","Меня боятся миллионы."]
[283,"Созонт","Оболонский","м",12,"Доброта и верность","Без пары","Мои подружки самые лучшие!"]
[284,"Викентий","Юпинов","м",9,"Спорт и хобби","Без пары","Меня не надо менять, меня надо понять."]
[285,"Артем","Моисеев","м",14,"Спорт и хобби","Встречаюсь","Пацаны ваще ребята, могете!"]
[286,"Фёдор","Бирюков","м",18,"Красота и искусство","Не указано","У кошек есть вкус. Раз дерет обои, значит, фигня Ваши обои!"]
[287,"Хрисанф","Багин","м",16,"Спорт и хобби","Не указано","ЧМАФФКИ всех, всех люблю!!!А))))"]
[288,"Матвей","Емельянов","м",17,"Саморазвитие","В активном поиске","шел как то медведь по лесу. Шел и никому не мешал. Вдруг видит машина горит, он сел в неё и сгорел..."]
[289,"Алексей","Соболев","м",12,"Деньги и слава","Без пары","Я приехала с дачи"]
[290,"Регина","Яковенко","ж",11,"Наука и исследования","Не указано","Я могу изменить свой статус Вконтакте… Это одна из немногих вещей, изменяющихся так легко…"]
[291,"Андрей","Комаров","м",13,"Доброта и верность","Не указано","С каждым годом зубные пасты становятся все лучше, а зубы все хуже."]
[292,"Симон","Шадринцев","м",10,"Саморазвитие","В активном поиске","Не надо говорить, что я плохая. Просто найди лучше, чем я, и отстань."]
[293,"Епифаний","Тетерин","м",14,"Деньги и слава","В активном поиске","Где-то в доме есть такое тайное место, куда носки, пульты, ключи уходят умирать."]
[294,"Акинфий","Суханов","м",13,"Семья и дети","В активном поиске","Введите здесь текст вашего статуса"]
[295,"Лидия","Багинина","ж",10,"Спорт и хобби","В активном поиске","когда парень говорит что любит это не значит что он любит тебя"]
[296,"Эвелина","Эвергетова","ж",16,"Красота и искусство","Не указано","Эти диалоги, которым не суждено состояться, так и крутятся у меня в голове."]
[297,"Глеб","Галкин","м",16,"Юмор и жизнелюбие","Встречаюсь","Говорят что чужую жизнь прожить нельзя, но испортить все-таки можно…"]
[298,"Ирина","Маврычева","ж",9,"Саморазвитие","Не указано","Я приехала)))))))))))))))"]
[299,"Станислава","Лавринцева","ж",8,"Юмор и жизнелюбие","В активном поиске","Ну лан, мне пора"]
[300,"Каллиник","Обручев","м",13,"Деньги и слава","В активном поиске","Так сильно люблю своих соседей! что даже музычку вот им включила громко чтоб слышали."]
[301,"Евмений","Цибулькин","м",15,"Семья и дети","Без пары","и при встрече родных глаз, я опускаю свои и просто иду дальше"]
[302,"Давид","Орлов","м",11,"Наука и исследования","Без пары","Искусственный интеллект – фигня по сравнению с естественной глупостью."]
[303,"Антропий","Овинов","м",18,"Саморазвитие","В активном поиске","Ну и шо что ветер в голове - зато мысли всегда свежие!"]
[304,"Марк","Степанов","м",13,"Саморазвитие","В активном поиске","Я говорю, что я самая лучая"]
[305,"Назар","Савин","м",8,"Наука и исследования","В активном поиске","Не осуждайте чужое прошлое, вы не знаете своё будущее..."]
[306,"Гаврила","Ивасишин","м",10,"Спорт и хобби","Встречаюсь","ЛЕТО!!"]
[307,"Валентина","Ягупова","ж",15,"Деньги и слава","Без пары","От вас столько же понимания, сколько от стены. Спасибо."]
[308,"Михаил","Лапин","м",13,"Семья и дети","Не указано","Эти диалоги, которым не суждено состояться, так и крутятся у меня в голове."]
[309,"Лев","Авдеев","м",16,"Семья и дети","Без пары","Где-то в доме есть такое тайное место, куда носки, пульты, ключи уходят умирать."]
[310,"Иродион","Евстратов","м",11,"Наука и исследования","Без пары","нажал \"новая тема\" и создал ))"]
[311,"Лев","Гришин","м",16,"Красота и искусство","Встречаюсь","Меня все время преследуют умные мысли...но я быстрее!!!"]
[312,"Марин","Чапкин","м",18,"Семья и дети","Встречаюсь","Где-то в доме есть такое тайное место, куда носки, пульты, ключи уходят умирать."]
[313,"Антон","Наврузов","м",13,"Деньги и слава","Не указано","Я не подарок!!! Я сюрприз)))"]
[314,"Даниил","Кузнецов","м",13,"Юмор и жизнелюбие","В активном поиске","Абажаю контактик!"]
[315,"Федотий","Лобанов","м",14,"Доброта и верность","Без пары","Я могу изменить свой статус Вконтакте… Это одна из немногих вещей, изменяющихся так легко…"]
[316,"Вероника","Овсянова","ж",11,"Деньги и слава","Без пары","Меня не надо менять, меня надо понять."]
[317,"Варвара","Шабунова","ж",13,"Юмор и жизнелюбие","Встречаюсь","Так сильно люблю своих соседей! что даже музычку вот им включила громко чтоб слышали."]
[318,"Фабиан","Мазуренко","м",8,"Саморазвитие","Без пары","От вас столько же понимания, сколько от стены. Спасибо."]
[319,"Алексей","Федосеев","м",9,"Деньги и слава","Не указано","ЛЕТО!!"]
[320,"Геннадий","Палагушкин","м",13,"Деньги и слава","Встречаюсь","Где-то в доме есть такое тайное место, куда носки, пульты, ключи уходят умирать."]
[321,"Лилиана","Быкова","ж",14,"Семья и дети","Встречаюсь","Не осуждайте чужое прошлое, вы не знаете своё будущее..."]
[322,"Мардарий","Удалов","м",8,"Доброта и верность","Не указано","когда парень говорит что любит это не значит что он любит тебя"]
[323,"Денис","Тарасов","м",9,"Юмор и жизнелюбие","Не указано","Ну лан, мне пора"]
[324,"Лев","Жуков","м",8,"Красота и искусство","Встречаюсь","Нигде не ведут себя так вежливо, как в очереди к стоматологу...  "]
[325,"Елена","Савина","ж",9,"Красота и искусство","Встречаюсь","Заткнись. Я знаю ты любишь меня!"]
[326,"Константин","Михайлов","м",18,"Юмор и жизнелюбие","Без пары","УЧЕНЬЕ свет, а за свет нужно платить"]
[327,"Милен","Эсаулов","м",15,"Спорт и хобби","В активном поиске","Эти диалоги, которым не суждено состояться, так и крутятся у меня в голове."]
[328,"Глеб","Зайцев","м",14,"Саморазвитие","Встречаюсь","Нигде не ведут себя так вежливо, как в очереди к стоматологу...  "]
[329,"Алексий","Бобров","м",14,"Доброта и верность","Не указано","Как я люблю осень!!!11111"]
[330,"Борислава","Радушина","ж",15,"Деньги и слава","В активном поиске","Пацаны ваще ребята, могете!"]
[331,"Арсений","Сергеев","м",13,"Юмор и жизнелюбие","Встречаюсь","…"]
[332,"Милана","Фалунина","ж",11,"Доброта и верность","В активном поиске","Купила чай для похудения - ничего так, классно с пироженным идёт!"]
[333,"Ангелина","Юрова","ж",15,"Красота и искусство","В активном поиске","Как я люблю осень!!!11111"]
[334,"Элеонора","Данюка","ж",10,"Деньги и слава","Без пары","Я приехала)))))))))))))))"]
[335,"Изольда","Частухина","ж",13,"Деньги и слава","Без пары","Уважительное отношение к окружающим, вот что так ценно"]
[336,"Фемистокл","Данчин","м",15,"Спорт и хобби","Не указано","Не надо говорить, что я плохая. Просто найди лучше, чем я, и отстань."]
[337,"Савва","Крюков","м",9,"Наука и исследования","Встречаюсь","Ужин при свечах - завтрак при огнетушителях"]
[338,"Эвелина","Иванушкина","ж",15,"Саморазвитие","Не указано","Эти диалоги, которым не суждено состояться, так и крутятся у меня в голове."]
[339,"Клавдия","Шамсутдинова","ж",12,"Деньги и слава","Не указано","От вас столько же понимания, сколько от стены. Спасибо."]
[340,"Илья","Щербаков","м",14,"Саморазвитие","Не указано","Ну и шо что ветер в голове - зато мысли всегда свежие!"]
[341,"Марина","Лаврушко","ж",17,"Семья и дети","В активном поиске","Абажаю контактик!"]
[342,"Марк","Колесников","м",10,"Саморазвитие","В активном поиске","От вас столько же понимания, сколько от стены. Спасибо."]
[343,"Никита","Сафонов","м",8,"Юмор и жизнелюбие","Встречаюсь","Как я люблю осень!!!11111"]
[344,"Викторин","Данченков","м",9,"Красота и искусство","В активном поиске","Я приехала с дачи"]
[345,"Кирилл","Колобов","м",14,"Деньги и слава","Встречаюсь","ЧМАФФКИ всех, всех люблю!!!А))))"]
[346,"Глеб","Ситников","м",16,"Красота и искусство","Встречаюсь","Я приехала с дачи"]
[347,"Глеб","Романов","м",17,"Доброта и верность","Не указано","загадывайте желание звезда упала)))"]
[348,"Ольга","Чарушина","ж",8,"Саморазвитие","Без пары","Ну и шо что ветер в голове - зато мысли всегда свежие!"]
[349,"Анастасия","Лавренева","ж",18,"Спорт и хобби","Без пары","Купила чай для похудения - ничего так, классно с пироженным идёт!"]
[350,"Себастьян","Власов","м",13,"Наука и исследования","Не указано","Я никогда не мечтал о чуде — И вы успокойтесь — и забудьте про него."]
[351,"Андрей","Фомичёв","м",18,"Наука и исследования","Без пары"]
[352,"Изабелла","Ханова","ж",16,"Деньги и слава","Не указано","Не знаю как быть(("]
[353,"Римма","Евсенкова","ж",9,"Саморазвитие","Встречаюсь","Нигде не ведут себя так вежливо, как в очереди к стоматологу...  "]
[354,"Никита","Филатов","м",13,"Юмор и жизнелюбие","Встречаюсь","Говорят что чужую жизнь прожить нельзя, но испортить все-таки можно…"]
[355,"Тимур","Лукин","м",15,"Юмор и жизнелюбие","Встречаюсь","ушла в школу…"]
[356,"Моисей","Халалеев","м",10,"Семья и дети","Не указано","ЛЕТО!!"]
[357,"Алексей","Суханов","м",13,"Деньги и слава","Без пары","Так сильно люблю своих соседей! что даже музычку вот им включила громко чтоб слышали."]
[358,"Егор","Силин","м",17,"Наука и исследования","В активном поиске","Введите здесь текст вашего статуса"]
[359,"Аггей","Фалаев","м",11,"Доброта и верность","В активном поиске","Как я люблю осень!!!11111"]
[360,"Пимен","Авдонкин","м",13,"Наука и исследования","Встречаюсь","Как я люблю осень!!!11111"]
[361,"Елизавета","Данильчук","ж",16,"Саморазвитие","Встречаюсь","Говорят что чужую жизнь прожить нельзя, но испортить все-таки можно…"]
[362,"Тимур","Аксёнов","м",9,"Юмор и жизнелюбие","В активном поиске","Абажаю тебя, моя подрушка. Лучшая!"]
[363,"Вилен","Овросимов","м",18,"Спорт и хобби","В активном поиске","Я говорю, что я самая лучая"]
[364,"Элеонора","Савеличева","ж",12,"Наука и исследования","Не указано","С каждым годом зубные пасты становятся все лучше, а зубы все хуже."]
[365,"Поликарпий","Евсеичев","м",10,"Наука и исследования","Не указано","Заткнись. Я знаю ты любишь меня!"]
[366,"Екатерина","Ивашенцева","ж",13,"Наука и исследования","В активном поиске","Введите здесь текст вашего статуса"]
[367,"Алексей","Белов","м",18,"Семья и дети","Встречаюсь","Где-то в доме есть такое тайное место, куда носки, пульты, ключи уходят умирать."]
[368,"Азалия","Ладыгина","ж",14,"Доброта и верность","Без пары","Меня все время преследуют умные мысли...но я быстрее!!!"]
[369,"Екатерина","Саватеева","ж",18,"Наука и исследования","В активном поиске","Где-то в доме есть такое тайное место, куда носки, пульты, ключи уходят умирать."]
[370,"Авенир","Лаврив","м",17,"Семья и дети","Встречаюсь","Пацаны ваще ребята, могете!"]
[371,"Кирилл","Жу равлёв","м",8,"Семья и дети","Без пары","Пацаны ваще ребята, могете!"]
[372,"Беатриса","Бадьянова","ж",12,"Саморазвитие","Встречаюсь","Я говорю, что я самая лучая"]
[373,"Феогност","Зайкин","м",18,"Доброта и верность","Не указано","Я могу изменить свой статус Вконтакте… Это одна из немногих вещей, изменяющихся так легко…"]
[374,"Тигран","Улыбаев","м",17,"Наука и исследования","В активном поиске","и при встрече родных глаз, я опускаю свои и просто иду дальше"]
[375,"Пётр","Оболонский","м",15,"Юмор и жизнелюбие","Без пары","Искусственный интеллект – фигня по сравнению с естественной глупостью."]
[376,"Анастосия","Хазанова","ж",12,"Юмор и жизнелюбие","Встречаюсь","Введите здесь текст вашего статуса"]
[377,"Таисия","Большакова","ж",12,"Спорт и хобби","В активном поиске","ушла в школу…"]
[378,"Маргарита","Эскина","ж",10,"Саморазвитие","Встречаюсь","загадывайте желание звезда упала)))"]
[379,"Людмила","Багинина","ж",10,"Спорт и хобби","Встречаюсь","Ну лан, мне пора. Оставьте своих челоечков при себе.."]
[380,"Матвей","Кошелев","м",11,"Семья и дети","В активном поиске","Ужин при свечах - завтрак при огнетушителях"]
[381,"Эмилия","Зажогина","ж",14,"Доброта и верность","Встречаюсь","Я никогда не мечтал о чуде — И вы успокойтесь — и забудьте про него."]
[382,"Дмитрий","Афанасьев","м",12,"Саморазвитие","Встречаюсь","ЧМАФФКИ всех, всех люблю!!!А))))"]
[383,"Алексей","Базылин","м",9,"Доброта и верность","В активном поиске","Говорят что чужую жизнь прожить нельзя, но испортить все-таки можно…"]
[384,"Борислава","Угарова","ж",15,"Юмор и жизнелюбие","Без пары","С каждым годом зубные пасты становятся все лучше, а зубы все хуже."]
[385,"Антипа","Юдочкин","м",14,"Юмор и жизнелюбие","Не указано","ушла в школу…"]
[386,"Валерий","Палагин","м",10,"Семья и дети","Без пары","Я вроде и не люблю тебя, но скучаю без тебя, очень скучаю."]
[387,"Климентий","Радчук","м",12,"Деньги и слава","Без пары","Заткнись. Я знаю ты любишь меня!"]
[388,"Константин","Медведев","м",11,"Доброта и верность","В активном поиске","Ну и шо что ветер в голове - зато мысли всегда свежие!"]
[389,"Максим","Соколов","м",13,"Саморазвитие","Не указано"]
[390,"Евдокия","Ванчакова","ж",9,"Деньги и слава","Встречаюсь","Купила чай для похудения - ничего так, классно с пироженным идёт!"]
[391,"Макар","Григорьев","м",15,"Спорт и хобби","Встречаюсь","Меня боятся миллионы."]
[392,"Селифан","Радик","м",15,"Красота и искусство","В активном поиске","…"]
[393,"Демьян","Даниличев","м",10,"Деньги и слава","Без пары","Так сильно люблю своих соседей! что даже музычку вот им включила громко чтоб слышали."]
[394,"Римма","Наумова","ж",11,"Юмор и жизнелюбие","Встречаюсь","Ужин при свечах - завтрак при огнетушителях"]
[395,"Киприан","Жбанов","м",18,"Красота и искусство","Не указано","Говорят что чужую жизнь прожить нельзя, но испортить все-таки можно…"]
[396,"Дмитрий","Самойлов","м",8,"Юмор и жизнелюбие","Встречаюсь","ЛЕТО!!"]
[397,"Денис","Шилов","м",15,"Саморазвитие","В активном поиске","Ну и шо что ветер в голове - зато мысли всегда свежие!"]
[398,"Алевтина","Лаврентьева","ж",8,"Наука и исследования","Без пары","Не знаю как быть(("]
[399,"Якуб","Бабичев","м",10,"Наука и исследования","Без пары","ушла в школу…"]
[400,"Диана","Макарева","ж",15,"Деньги и слава","Без пары","От вас столько же понимания, сколько от стены. Спасибо."]
[401,"Аникита","Гавешин","м",17,"Саморазвитие","В активном поиске","Введите здесь текст вашего статуса"]
[402,"Даниил","Гусев","м",9,"Юмор и жизнелюбие","Встречаюсь","Я вроде и не люблю тебя, но скучаю без тебя, очень скучаю."]
[403,"Дмитрий","Копылов","м",8,"Саморазвитие","Без пары","Я говорю, что я самая лучая"]
[404,"Флорентин","Кудряшов","м",16,"Юмор и жизнелюбие","Без пары","Я приехала с дачи"]
[405,"Максим","Елисеев","м",11,"Наука и исследования","Не указано","Введите здесь текст вашего статуса"]
[406,"Любовь","Заварзина","ж",10,"Саморазвитие","Без пары","Введите здесь текст вашего статуса"]
[407,"Владлена","Надеждина","ж",16,"Юмор и жизнелюбие","Не указано","Я говорю, что я самая лучая"]
[408,"Денис","Вишняков","м",13,"Саморазвитие","Встречаюсь","когда парень говорит что любит это не значит что он любит тебя"]
[409,"Евдокия","Степаненко","ж",10,"Саморазвитие","Без пары","Не знаю как быть(("]
[410,"Вениамин","Иванцев","м",8,"Юмор и жизнелюбие","В активном поиске","Купила чай для похудения - ничего так, классно с пироженным идёт!"]
[411,"Аникита","Вишняков","м",11,"Доброта и верность","Не указано","Эти диалоги, которым не суждено состояться, так и крутятся у меня в голове."]
[412,"Зинаида","Ситникова","ж",10,"Деньги и слава","Не указано","Меня не надо менять, меня надо понять."]
[413,"Ксения","Эрделиа","ж",13,"Саморазвитие","Встречаюсь","…"]
[414,"Фаина","Увина","ж",8,"Юмор и жизнелюбие","Встречаюсь"]
[415,"Варлам","Юницкий","м",18,"Спорт и хобби","Встречаюсь","Уважительное отношение к окружающим, вот что так ценно"]
[416,"Кристина","Ершова","ж",8,"Доброта и верность","Не указано","Люби меня или ненавидь — но лично мне по барабану!"]
[417,"Тимофей","Гришин","м",8,"Красота и искусство","В активном поиске","Ну и шо что ветер в голове - зато мысли всегда свежие!"]
[418,"Анастасий","Ягодников","м",17,"Саморазвитие","Встречаюсь","Меня не надо менять, меня надо понять."]
[419,"Матвей","Кудрявцев","м",10,"Юмор и жизнелюбие","Встречаюсь","У кошек есть вкус. Раз дерет обои, значит, фигня Ваши обои!"]
[420,"Кастрихий","Селезнёв","м",11,"Семья и дети","Встречаюсь","Мои подружки самые лучшие!"]
[421,"Лев","Логинов","м",15,"Семья и дети","Не указано","Я приехала)))))))))))))))"]
[422,"Лада","Давыдкина","ж",9,"Красота и искусство","В активном поиске","ЛЕТО!!"]
[423,"Лилия","Савенко","ж",18,"Красота и искусство","В активном поиске","Пишите если чо"]
[424,"Елена","Названова","ж",14,"Саморазвитие","Не указано","Меня боятся миллионы."]
[425,"Милана","Яковина","ж",15,"Спорт и хобби","В активном поиске","Ну лан, мне пора"]
[426,"Зинаида","Юнева","ж",8,"Наука и исследования","Встречаюсь","УЧЕНЬЕ свет, а за свет нужно платить"]
[427,"Роман","Шашков","м",17,"Доброта и верность","Без пары","Не знаю как быть(("]
[428,"Модест","Обрезков","м",16,"Красота и искусство","Без пары","когда парень говорит что любит это не значит что он любит тебя"]
[429,"Даниил","Субботин","м",8,"Красота и искусство","Без пары","Не осуждайте чужое прошлое, вы не знаете своё будущее..."]
[430,"Марк","Ефремов","м",10,"Красота и искусство","В активном поиске","УЧЕНЬЕ свет, а за свет нужно платить"]
[431,"Никита","Тетерин","м",9,"Юмор и жизнелюбие","Встречаюсь","Я приехала с дачи"]
[432,"Владислав","Лазарев","м",14,"Наука и исследования","Встречаюсь"]
[433,"Емельян","Магеркин","м",16,"Деньги и слава","Не указано","Меня все время преследуют умные мысли...но я быстрее!!!"]
[434,"Вит","Экспериментов","м",16,"Красота и искусство","Без пары","Введите здесь текст вашего статуса"]
[435,"Макар","Воробьёв","м",15,"Семья и дети","Встречаюсь","Заткнись. Я знаю ты любишь меня!"]
[436,"Тимур","Бобылев","м",9,"Юмор и жизнелюбие","Без пары","Говорят что чужую жизнь прожить нельзя, но испортить все-таки можно…"]
[437,"Ксения","Жегалова","ж",14,"Саморазвитие","Встречаюсь","У кошек есть вкус. Раз дерет обои, значит, фигня Ваши обои!"]
[438,"Макар","Некрасов","м",15,"Юмор и жизнелюбие","Встречаюсь","Люби меня или ненавидь — но лично мне по барабану!"]
[439,"Регина","Савинцева","ж",18,"Семья и дети","Встречаюсь","Я приехала с дачи"]
[440,"Никодим","Авдиев","м",15,"Доброта и верность","Встречаюсь","и при встрече родных глаз, я опускаю свои и просто иду дальше"]
[441,"Бонифатий","Саванин","м",18,"Саморазвитие","Не указано","Искусственный интеллект – фигня по сравнению с естественной глупостью."]
[442,"Сильван","Часоводов","м",18,"Доброта и верность","Без пары","Нигде не ведут себя так вежливо, как в очереди к стоматологу...  "]
[443,"Тимофей","Исаев","м",12,"Спорт и хобби","Встречаюсь","Я не подарок!!! Я сюрприз)))"]
[444,"Владимир","Забалуев","м",10,"Доброта и верность","Встречаюсь","Где-то в доме есть такое тайное место, куда носки, пульты, ключи уходят умирать."]
[445,"Пётр","Юревич","м",17,"Семья и дети","Встречаюсь","Введите здесь текст вашего статуса"]
[446,"Назар","Макаров","м",12,"Саморазвитие","В активном поиске","Меня не надо менять, меня надо понять."]
[447,"Аделаида","Шаламова","ж",9,"Деньги и слава","Без пары","Пацаны ваще ребята, могете!"]
[448,"Горгоний","Угланов","м",13,"Спорт и хобби","Встречаюсь","ЧМАФФКИ всех, всех люблю!!!А))))"]
[449,"Луиза","Агафонова","ж",14,"Юмор и жизнелюбие","В активном поиске","Я вроде и не люблю тебя, но скучаю без тебя, очень скучаю."]
[450,"Кирилл","Иванов","м",17,"Красота и искусство","Встречаюсь","Люби меня или ненавидь — но лично мне по барабану!"]
[451,"Лада","Валерианова","ж",13,"Спорт и хобби","В активном поиске","Нигде не ведут себя так вежливо, как в очереди к стоматологу...  "]
[452,"Богдан","Беляев","м",9,"Наука и исследования","Не указано","Я не подарок!!! Я сюрприз)))"]
[453,"Давид","Пахомов","м",9,"Деньги и слава","Не указано","Так сильно люблю своих соседей! что даже музычку вот им включила громко чтоб слышали."]
[454,"Иван","Пономарёв","м",9,"Наука и исследования","Встречаюсь","Абажаю контактик!"]
[455,"Роман","Семёнов","м",17,"Спорт и хобби","В активном поиске","Пацаны ваще ребята, могете!"]
[456,"Филипий","Тагильцев","м",12,"Саморазвитие","Не указано","Меня все время преследуют умные мысли...но я быстрее!!!"]
[457,"Марк","Дорофеев","м",14,"Юмор и жизнелюбие","В активном поиске","Ну лан, мне пора"]
[458,"Доримедонт","Цехмистров","м",10,"Деньги и слава","Без пары","Эти диалоги, которым не суждено состояться, так и крутятся у меня в голове."]
[459,"Георгий","Хариточенко","м",18,"Наука и исследования","В активном поиске","Я говорю, что я самая лучая"]
[460,"Лада","Галузина","ж",12,"Спорт и хобби","Без пары","ушла в школу…"]
[461,"Богдан","Лихачёв","м",9,"Доброта и верность","Встречаюсь","Люби меня или ненавидь — но лично мне по барабану!"]
[462,"Лилия","Якобец","ж",8,"Саморазвитие","В активном поиске","Люби меня или ненавидь — но лично мне по барабану!"]
[463,"Ольга","Обуткова","ж",18,"Деньги и слава","Встречаюсь","Меня не надо менять, меня надо понять."]
[464,"Гурий","Якимков","м",13,"Деньги и слава","В активном поиске","Так сильно люблю своих соседей! что даже музычку вот им включила громко чтоб слышали."]
[465,"Лилиана","Забавина","ж",12,"Доброта и верность","В активном поиске","нажал \"новая тема\" и создал ))"]
[466,"Якуб","Авдиев","м",16,"Доброта и верность","Без пары","Я вроде и не люблю тебя, но скучаю без тебя, очень скучаю."]
[467,"Нестор","Савич","м",12,"Наука и исследования","Не указано","Ужин при свечах - завтрак при огнетушителях"]
[468,"Эвелина","Фалова","ж",16,"Доброта и верность","В активном поиске","Ну и шо что ветер в голове - зато мысли всегда свежие!"]
[469,"Роман","Борисов","м",10,"Юмор и жизнелюбие","В активном поиске","Я могу изменить свой статус Вконтакте… Это одна из немногих вещей, изменяющихся так легко…"]
[470,"Наталия","Разгуляева","ж",17,"Саморазвитие","Встречаюсь","Не надо говорить, что я плохая. Просто найди лучше, чем я, и отстань."]
[471,"Сакердон","Лавренев","м",16,"Юмор и жизнелюбие","Не указано","Уважительное отношение к окружающим, вот что так ценно"]
[472,"Михаил","Гаврилов","м",14,"Семья и дети","Без пары","Пацаны ваще ребята, могете!"]
[473,"Мстислав","Казимов","м",16,"Доброта и верность","Без пары"]
[474,"Ефрем","Майор","м",18,"Доброта и верность","Встречаюсь"]
[475,"Влада","Давыдочкина","ж",12,"Доброта и верность","Без пары","Меня не надо менять, меня надо понять."]
[476,"Оксана","Обрядова","ж",9,"Деньги и слава","Без пары","Купила чай для похудения - ничего так, классно с пироженным идёт!"]
[477,"Виргиния","Зазиркина","ж",15,"Семья и дети","В активном поиске","ЛЕТО!!"]
[478,"Кирилл","Бирюков","м",12,"Красота и искусство","Не указано","Искусственный интеллект – фигня по сравнению с естественной глупостью."]
[479,"Аврелиан","Иванихин","м",16,"Наука и исследования","Не указано","Люби меня или ненавидь — но лично мне по барабану!"]
[480,"Алевтина","Павельева","ж",14,"Саморазвитие","Встречаюсь","Введите здесь текст вашего статуса"]
[481,"Лидия","Жбанова","ж",13,"Деньги и слава","Без пары","Меня все время преследуют умные мысли...но я быстрее!!!"]
[482,"Роман","Мишин","м",18,"Деньги и слава","Не указано","Не осуждайте чужое прошлое, вы не знаете своё будущее..."]
[483,"Анастасий","Царственый","м",13,"Семья и дети","Без пары","ушла в школу…"]
[484,"Ануфрий","Кадышев","м",17,"Спорт и хобби","Встречаюсь","Ну и шо что ветер в голове - зато мысли всегда свежие!"]
[485,"Ефремий","Макагонов","м",11,"Юмор и жизнелюбие","Без пары","Я не подарок!!! Я сюрприз)))"]
[486,"Тимофей","Гордеев","м",11,"Семья и дети","Без пары","У кошек есть вкус. Раз дерет обои, значит, фигня Ваши обои!"]
[487,"Макар","Носов","м",18,"Наука и исследования","Не указано","Абажаю тебя, моя подрушка. Лучшая!"]
[488,"Александр","Петухов","м",10,"Семья и дети","Встречаюсь","Нигде не ведут себя так вежливо, как в очереди к стоматологу...  "]
[489,"Артем","Громов","м",8,"Семья и дети","В активном поиске","Люби меня или ненавидь — но лично мне по барабану!"]
[490,"Илья","Новиков","м",15,"Юмор и жизнелюбие","В активном поиске","От вас столько же понимания, сколько от стены. Спасибо."]
[491,"Бронислава","Фаресова","ж",10,"Семья и дети","В активном поиске","Не осуждайте чужое прошлое, вы не знаете своё будущее..."]
[492,"Семен","Узбеков","м",15,"Доброта и верность","Встречаюсь","Я никогда не мечтал о чуде — И вы успокойтесь — и забудьте про него."]
[493,"Елизавета","Бабунина","ж",9,"Доброта и верность","В активном поиске","Как я люблю осень!!!11111"]
[494,"Луиза","Давыдкина","ж",14,"Доброта и верность","Без пары","…"]
[495,"Тимофей","Егоров","м",15,"Спорт и хобби","В активном поиске","Где-то в доме есть такое тайное место, куда носки, пульты, ключи уходят умирать."]
[496,"Даниил","Кириллов","м",8,"Юмор и жизнелюбие","Без пары","Абажаю тебя, моя подрушка. Лучшая!"]
[497,"Михаил","Ивахнов","м",13,"Юмор и жизнелюбие","В активном поиске","Не знаю как быть(("]
[498,"Пантелеймон","Обезьянинов","м",15,"Наука и исследования","В активном поиске"]
[499,"Илья","Артемьев","м",10,"Наука и исследования","В активном поиске","Абажаю контактик!"]
[500,"Ратмир","Чванов","м",14,"Наука и исследования","Встречаюсь","Нигде не ведут себя так вежливо, как в очереди к стоматологу...  "]
[501,"Лариса","Бабулина","ж",11,"Саморазвитие","Не указано","Эти диалоги, которым не суждено состояться, так и крутятся у меня в голове."]
[502,"Макар","Никифоров","м",14,"Спорт и хобби","Без пары","шел как то медведь по лесу. Шел и никому не мешал. Вдруг видит машина горит, он сел в неё и сгорел..."]
[503,"Святослав","Константинов","м",13,"Саморазвитие","Встречаюсь","Я не подарок!!! Я сюрприз)))"]
[504,"Афинодор","Яблонский","м",11,"Юмор и жизнелюбие","Без пары","Люби меня или ненавидь — но лично мне по барабану!"]
[505,"Лиана","Обуткова","ж",18,"Юмор и жизнелюбие","В активном поиске","Искусственный интеллект – фигня по сравнению с естественной глупостью."]
[506,"Бронислава","Бажуткина","ж",14,"Саморазвитие","Встречаюсь","ЧМАФФКИ всех, всех люблю!!!А))))"]
[507,"Орест","Надъярный","м",14,"Семья и дети","Встречаюсь","Не осуждайте чужое прошлое, вы не знаете своё будущее..."]
[508,"Никита","Воронов","м",17,"Семья и дети","Встречаюсь","Меня не надо менять, меня надо понять."]
[509,"Стахий","Бабанин","м",11,"Спорт и хобби","Встречаюсь","Заткнись. Я знаю ты любишь меня!"]
[510,"Наталия","Нагибина","ж",12,"Спорт и хобби","Встречаюсь","Абажаю тебя, моя подрушка. Лучшая!"]
[511,"Илья","Сазонов","м",9,"Саморазвитие","В активном поиске","Я вроде и не люблю тебя, но скучаю без тебя, очень скучаю."]
[512,"Егор","Морозов","м",13,"Семья и дети","Не указано","Я приехала с дачи"]
[513,"Галина","Кадкина","ж",10,"Саморазвитие","В активном поиске","С каждым годом зубные пасты становятся все лучше, а зубы все хуже."]
[514,"Тимур","Петухов","м",15,"Доброта и верность","Без пары","Я никогда не мечтал о чуде — И вы успокойтесь — и забудьте про него."]
[515,"Екатерина","Лазухина","ж",12,"Юмор и жизнелюбие","В активном поиске","Заткнись. Я знаю ты любишь меня!"]
[516,"Мирослава","Палеева","ж",15,"Семья и дети","В активном поиске","Нигде не ведут себя так вежливо, как в очереди к стоматологу...  "]
[517,"Арсений","Дементьев","м",9,"Саморазвитие","В активном поиске","От вас столько же понимания, сколько от стены. Спасибо."]
[518,"Матвей","Сидоров","м",15,"Саморазвитие","Не указано","Заткнись. Я знаю ты любишь меня!"]
[519,"Михаил","Антонов","м",11,"Красота и искусство","Без пары","Не надо говорить, что я плохая. Просто найди лучше, чем я, и отстань."]
[520,"Тимофей","Карпов","м",14,"Деньги и слава","Встречаюсь","Я приехала с дачи"]
[521,"Александр","Симонов","м",8,"Юмор и жизнелюбие","Без пары","ЧМАФФКИ всех, всех люблю!!!А))))"]
[522,"Никита","Смирнов","м",14,"Спорт и хобби","В активном поиске","Уважительное отношение к окружающим, вот что так ценно"]
[523,"Константин","Мясников","м",10,"Саморазвитие","В активном поиске","Уважительное отношение к окружающим, вот что так ценно"]
[524,"Андрей","Ермаков","м",10,"Саморазвитие","Без пары","От вас столько же понимания, сколько от стены. Спасибо."]
[525,"Севастьян","Якимков","м",10,"Доброта и верность","Без пары","УЧЕНЬЕ свет, а за свет нужно платить"]
[526,"Кирилл","Ильин","м",15,"Спорт и хобби","Не указано","Не надо говорить, что я плохая. Просто найди лучше, чем я, и отстань."]
[527,"Евмен","Фараонов","м",18,"Спорт и хобби","Без пары","…"]
[528,"Евтихий","Козявкин","м",14,"Семья и дети","Встречаюсь","Я могу изменить свой статус Вконтакте… Это одна из немногих вещей, изменяющихся так легко…"]
[529,"Виктория","Разоренова","ж",16,"Спорт и хобби","Встречаюсь","Я приехала)))))))))))))))"]
[530,"Лидия","Улыбина","ж",18,"Красота и искусство","Без пары","Меня не надо менять, меня надо понять."]
[531,"Ардальон","Хаврунов","м",15,"Деньги и слава","Без пары","Абажаю тебя, моя подрушка. Лучшая!"]
[532,"Артем","Крылов","м",14,"Наука и исследования","Без пары","Ужин при свечах - завтрак при огнетушителях"]
[533,"Сергей","Евсюшкин","м",17,"Семья и дети","Не указано","С каждым годом зубные пасты становятся все лучше, а зубы все хуже."]
[534,"Нестор","Чайка","м",12,"Саморазвитие","Не указано","Я вроде и не люблю тебя, но скучаю без тебя, очень скучаю."]
[535,"Кристина","Иванцева","ж",11,"Семья и дети","Не указано","С каждым годом зубные пасты становятся все лучше, а зубы все хуже."]
[536,"Елизавета","Цапенко","ж",15,"Семья и дети","Встречаюсь","Ну лан, мне пора"]
[537,"Макар","Нестеров","м",16,"Юмор и жизнелюбие","Без пары","Не надо говорить, что я плохая. Просто найди лучше, чем я, и отстань."]
[538,"Эммануил","Забылин","м",13,"Доброта и верность","В активном поиске","Не надо говорить, что я плохая. Просто найди лучше, чем я, и отстань."]
[539,"Протасий","Валенцов","м",8,"Спорт и хобби","Не указано","ЧМАФФКИ всех, всех люблю!!!А))))"]
[540,"Фаина","Чалдонова","ж",9,"Красота и искусство","Не указано","ушла в школу…"]
[541,"Святослав","Цветков","м",14,"Деньги и слава","Без пары","Я приехала)))))))))))))))"]
[542,"Людмила","Павлюченко","ж",9,"Юмор и жизнелюбие","Встречаюсь","Так сильно люблю своих соседей! что даже музычку вот им включила громко чтоб слышали."]
[543,"Максимильян","Направник","м",18,"Спорт и хобби","В активном поиске","Я говорю, что я самая лучая"]
[544,"Фаина","Радькова","ж",15,"Семья и дети","Не указано","Я приехала с дачи"]
[545,"Илья","Кондратьев","м",16,"Юмор и жизнелюбие","Не указано","Пацаны ваще ребята, могете!"]
[546,"Артем","Трофимов","м",10,"Наука и исследования","Без пары","Не надо говорить, что я плохая. Просто найди лучше, чем я, и отстань."]
[547,"Диана","Павлушкина","ж",16,"Доброта и верность","В активном поиске","нажал \"новая тема\" и создал ))"]
[548,"Лилия","Ивахнова","ж",10,"Красота и искусство","Встречаюсь","Заткнись. Я знаю ты любишь меня!"]
[549,"Аполлос","Юдинов","м",14,"Наука и исследования","В активном поиске","Я не подарок!!! Я сюрприз)))"]
[550,"Римма","Валахова","ж",17,"Наука и исследования","Не указано","Меня не надо менять, меня надо понять."]
[551,"Татьяна","Чебурахина","ж",11,"Саморазвитие","Не указано","Абажаю контактик!"]
[552,"Ярослав","Козлов","м",9,"Юмор и жизнелюбие","Без пары","Мои подружки самые лучшие!"]
[553,"Авдей","Колесников","м",11,"Красота и искусство","Не указано","Меня боятся миллионы."]
[554,"Антонина","Майкова","ж",11,"Юмор и жизнелюбие","В активном поиске","Я могу изменить свой статус Вконтакте… Это одна из немногих вещей, изменяющихся так легко…"]
[555,"Мария","Овдина","ж",18,"Семья и дети","Без пары","Введите здесь текст вашего статуса"]
[556,"Артем","Кулаков","м",13,"Саморазвитие","Без пары","ушла в школу…"]
[557,"Иван","Тимофеев","м",14,"Доброта и верность","Без пары","Я вроде и не люблю тебя, но скучаю без тебя, очень скучаю."]
[558,"Денис","Буров","м",11,"Наука и исследования","В активном поиске","Абажаю контактик!"]
[559,"Римма","Жаренова","ж",12,"Наука и исследования","Встречаюсь","Я говорю, что я самая лучая"]
[560,"Дмитрий","Матвеев","м",15,"Саморазвитие","Не указано","С каждым годом зубные пасты становятся все лучше, а зубы все хуже."]
[561,"Меркул","Козадаев","м",16,"Доброта и верность","Не указано","загадывайте желание звезда упала)))"]
[562,"Леонтий","Макарочкин","м",18,"Саморазвитие","Не указано","Ну лан, мне пора"]
[563,"Алексей","Третьяков","м",8,"Юмор и жизнелюбие","Встречаюсь","Я не подарок!!! Я сюрприз)))"]
[564,"Тристан","Ядренкин","м",10,"Саморазвитие","В активном поиске","Я никогда не мечтал о чуде — И вы успокойтесь — и забудьте про него."]
[565,"Константин","Шаров","м",11,"Семья и дети","В активном поиске","Введите здесь текст вашего статуса"]
[566,"Мавродий","Давыденков","м",12,"Семья и дети","Не указано","Меня не надо менять, меня надо понять."]
[567,"Геласий","Бадьянов","м",17,"Красота и искусство","Не указано","ушла в школу…"]
[568,"Лада","Авдеенкова","ж",16,"Семья и дети","Встречаюсь","нажал \"новая тема\" и создал ))"]
[569,"Зинаида","Харлапина","ж",11,"Юмор и жизнелюбие","Без пары","загадывайте желание звезда упала)))"]
[570,"Елена","Захарова","ж",13,"Красота и искусство","В активном поиске","Ужин при свечах - завтрак при огнетушителях"]
[571,"Светлана","Якимова","ж",12,"Наука и исследования","В активном поиске","Как я люблю осень!!!11111"]
[572,"Александра","Базырина","ж",9,"Семья и дети","Без пары","Не знаю как быть(("]
[573,"Македоний","Волков","м",9,"Юмор и жизнелюбие","В активном поиске","Не знаю как быть(("]
[574,"Исаак","Павлюченко","м",18,"Спорт и хобби","В активном поиске","когда парень говорит что любит это не значит что он любит тебя"]
[575,"Наталия","Евстюничева","ж",18,"Семья и дети","Без пары","загадывайте желание звезда упала)))"]
[576,"Лев","Шестаков","м",8,"Наука и исследования","Не указано","загадывайте желание звезда упала)))"]
[577,"Святослав","Рыбаков","м",16,"Наука и исследования","Без пары","С каждым годом зубные пасты становятся все лучше, а зубы все хуже."]
[578,"Анисий","Матвеев","м",14,"Юмор и жизнелюбие","Встречаюсь","УЧЕНЬЕ свет, а за свет нужно платить"]
[579,"Феофил","Овдокин","м",15,"Наука и исследования","В активном поиске","Абажаю контактик!"]
[580,"Ярослав","Костин","м",9,"Доброта и верность","Без пары","когда парень говорит что любит это не значит что он любит тебя"]
[581,"Таисия","Жукова","ж",16,"Семья и дети","Без пары","Говорят что чужую жизнь прожить нельзя, но испортить все-таки можно…"]
[582,"Михаил","Герасимов","м",14,"Спорт и хобби","Встречаюсь","Люби меня или ненавидь — но лично мне по барабану!"]
[583,"Михаил","Комиссаров","м",12,"Красота и искусство","Встречаюсь","Как я люблю осень!!!11111"]
[584,"Флорентин","Данилко","м",16,"Семья и дети","Без пары","Купила чай для похудения - ничего так, классно с пироженным идёт!"]
[585,"Тимур","Фадеев","м",8,"Доброта и верность","В активном поиске","Я приехала)))))))))))))))"]
[586,"Наталия","Евпалова","ж",17,"Деньги и слава","Встречаюсь","Как я люблю осень!!!11111"]
[587,"Ульяна","Давидюка","ж",17,"Наука и исследования","Без пары","Абажаю тебя, моя подрушка. Лучшая!"]
[588,"Илья","Чернов","м",14,"Красота и искусство","Не указано","У кошек есть вкус. Раз дерет обои, значит, фигня Ваши обои!"]
[589,"Римма","Волкова","ж",13,"Семья и дети","Встречаюсь","…"]
[590,"Вероника","Данчикова","ж",9,"Красота и искусство","Встречаюсь","УЧЕНЬЕ свет, а за свет нужно платить"]
[591,"Марта","Зыкова","ж",11,"Красота и искусство","Встречаюсь","Меня все время преследуют умные мысли...но я быстрее!!!"]
[592,"Станислава","Загудаева","ж",17,"Семья и дети","Без пары","Абажаю тебя, моя подрушка. Лучшая!"]
[593,"Бронислав","Надежкин","м",14,"Деньги и слава","Встречаюсь","Где-то в доме есть такое тайное место, куда носки, пульты, ключи уходят умирать."]
[594,"Варвара","Мазуркевич","ж",10,"Саморазвитие","Не указано","Я не подарок!!! Я сюрприз)))"]
[595,"Тимур","Голубев","м",17,"Семья и дети","В активном поиске","Введите здесь текст вашего статуса"]
[596,"Пётр","Павенко","м",12,"Юмор и жизнелюбие","В активном поиске","шел как то медведь по лесу. Шел и никому не мешал. Вдруг видит машина горит, он сел в неё и сгорел..."]
[597,"Святослав","Киселёв","м",15,"Деньги и слава","Без пары","и при встрече родных глаз, я опускаю свои и просто иду дальше"]
[598,"Владислав","Харитонов","м",18,"Семья и дети","Встречаюсь","Я вроде и не люблю тебя, но скучаю без тебя, очень скучаю."]
[599,"Ярослав","Одинцов","м",15,"Спорт и хобби","Встречаюсь","Не надо говорить, что я плохая. Просто найди лучше, чем я, и отстань."]
[600,"Надежда","Талалахина","ж",13,"Красота и искусство","Без пары"]
[601,"Елена","Иваньева","ж",16,"Деньги и слава","Не указано","Люби меня или ненавидь — но лично мне по барабану!"]
[602,"Таисия","Якирина","ж",10,"Доброта и верность","Без пары","Я не подарок!!! Я сюрприз)))"]
[603,"Стела","Ханюкова","ж",15,"Деньги и слава","Не указано","Я не подарок!!! Я сюрприз)))"]
[604,"Герасим","Наркисcов","м",13,"Красота и искусство","Не указано","Говорят что чужую жизнь прожить нельзя, но испортить все-таки можно…"]
[605,"Владислав","Веселов","м",8,"Деньги и слава","В активном поиске","нажал \"новая тема\" и создал ))"]
[606,"Алиса","Даншина","ж",16,"Спорт и хобби","Не указано","загадывайте желание звезда упала)))"]
[607,"Бронислава","Чвирева","ж",10,"Красота и искусство","Не указано","Абажаю тебя, моя подрушка. Лучшая!"]
[608,"Давид","Брагин","м",11,"Юмор и жизнелюбие","Встречаюсь","УЧЕНЬЕ свет, а за свет нужно платить"]
[609,"Алевтина","Узбекова","ж",13,"Наука и исследования","В активном поиске","Не надо говорить, что я плохая. Просто найди лучше, чем я, и отстань."]
[610,"Минай","Сергеев","м",13,"Доброта и верность","Не указано","Меня не надо менять, меня надо понять."]
[611,"Арсений","Власов","м",8,"Семья и дети","Не указано","Не осуждайте чужое прошлое, вы не знаете своё будущее..."]
[612,"Мария","Ванютина","ж",13,"Красота и искусство","В активном поиске","Мои подружки самые лучшие!"]
[613,"Евгения","Целищева","ж",14,"Наука и исследования","Без пары","УЧЕНЬЕ свет, а за свет нужно платить"]
[614,"Евгения","Лавринова","ж",9,"Доброта и верность","Встречаюсь","нажал \"новая тема\" и создал ))"]
[615,"Алиса","Чашникова","ж",13,"Наука и исследования","Без пары","ЛЕТО!!"]
[616,"Матвей","Молчанов","м",14,"Красота и искусство","В активном поиске","Уважительное отношение к окружающим, вот что так ценно"]
[617,"Станислава","Евдокименко","ж",15,"Юмор и жизнелюбие","Без пары","Я - человек непредсказуемый. Хочу удалю из друзей, хочу оставлю)))))))))))))"]
[618,"Фаина","Увакина","ж",8,"Спорт и хобби","В активном поиске","ушла в школу…"]
[619,"Святослав","Игнатьев","м",15,"Семья и дети","Встречаюсь","ЧМАФФКИ всех, всех люблю!!!А))))"]
[620,"Регина","Жбанникова","ж",9,"Юмор и жизнелюбие","В активном поиске","У кошек есть вкус. Раз дерет обои, значит, фигня Ваши обои!"]
[621,"Константин","Филиппов","м",8,"Деньги и слава","Не указано","У кошек есть вкус. Раз дерет обои, значит, фигня Ваши обои!"]
[622,"Арсений","Белов","м",8,"Красота и искусство","Без пары","Меня все время преследуют умные мысли...но я быстрее!!!"]
[623,"Василиса","Макарчик","ж",13,"Семья и дети","Встречаюсь","Ну лан, мне пора"]
[624,"Лиана","Убайдуллаева","ж",10,"Саморазвитие","Не указано","Не надо говорить, что я плохая. Просто найди лучше, чем я, и отстань."]
[625,"Дмитрий","Соловьёв","м",14,"Спорт и хобби","Не указано","Я приехала)))))))))))))))"]
[626,"Зосим","Жевакин","м",9,"Саморазвитие","Встречаюсь","С каждым годом зубные пасты становятся все лучше, а зубы все хуже."]
[627,"Гавриил","Давиденко","м",17,"Наука и исследования","Не указано"]
[628,"Раиса","Заботина","ж",9,"Доброта и верность","Встречаюсь","Заткнись. Я знаю ты любишь меня!"]
[629,"Лилиана","Харлашина","ж",13,"Деньги и слава","Встречаюсь","Меня все время преследуют умные мысли...но я быстрее!!!"]
[630,"Станислава","Сорокина","ж",16,"Красота и искусство","Встречаюсь","Меня все время преследуют умные мысли...но я быстрее!!!"]
[631,"Назар","Гущин","м",16,"Доброта и верность","Без пары","От вас столько же понимания, сколько от стены. Спасибо."]
[632,"Валерий","Эзерин","м",17,"Спорт и хобби","В активном поиске","УЧЕНЬЕ свет, а за свет нужно платить"]
[633,"Ермолай","Якимов","м",8,"Семья и дети","В активном поиске","загадывайте желание звезда упала)))"]
[634,"Владислава","Жабенкова","ж",13,"Юмор и жизнелюбие","Встречаюсь","ЧМАФФКИ всех, всех люблю!!!А))))"]
[635,"Виктория","Хаврюхина","ж",8,"Наука и исследования","Без пары","Абажаю контактик!"]
[636,"Марк","Селезнёв","м",16,"Спорт и хобби","Без пары","Купила чай для похудения - ничего так, классно с пироженным идёт!"]
[637,"Богдан","Быков","м",16,"Саморазвитие","Не указано","Меня все время преследуют умные мысли...но я быстрее!!!"]
[638,"Светлана","Базылева","ж",12,"Семья и дети","В активном поиске","Не осуждайте чужое прошлое, вы не знаете своё будущее..."]
[639,"Александра","Ситникова","ж",17,"Красота и искусство","Не указано","Говорят что чужую жизнь прожить нельзя, но испортить все-таки можно…"]
[640,"Адриан","Радяев","м",8,"Юмор и жизнелюбие","Не указано","Не знаю как быть(("]
[641,"Каллимах","Макаревич","м",17,"Юмор и жизнелюбие","Встречаюсь","нажал \"новая тема\" и создал ))"]
[642,"Артем","Никонов","м",8,"Спорт и хобби","В активном поиске","Меня не надо менять, меня надо понять."]
[643,"Поликарп","Евпланов","м",9,"Спорт и хобби","Встречаюсь","От вас столько же понимания, сколько от стены. Спасибо."]
[644,"Таисия","Фролова","ж",12,"Доброта и верность","В активном поиске","Не осуждайте чужое прошлое, вы не знаете своё будущее..."]
[645,"Игнатий","Ядов","м",16,"Юмор и жизнелюбие","Не указано","Эти диалоги, которым не суждено состояться, так и крутятся у меня в голове."]
[646,"Иван","Белозёров","м",13,"Семья и дети","Встречаюсь","загадывайте желание звезда упала)))"]
[647,"Максим","Щукин","м",15,"Красота и искусство","Без пары","Эти диалоги, которым не суждено состояться, так и крутятся у меня в голове."]
[648,"Борислава","Евдохина","ж",16,"Деньги и слава","В активном поиске","Мои подружки самые лучшие!"]
[649,"Владислав","Хохлов","м",14,"Спорт и хобби","Встречаюсь","Абажаю контактик!"]
[650,"Маргарита","Михайлова","ж",16,"Доброта и верность","В активном поиске","Уважительное отношение к окружающим, вот что так ценно"]
[651,"Авдий","Павлис","м",17,"Деньги и слава","Не указано","…"]
[652,"Софроний","Юрин","м",14,"Юмор и жизнелюбие","В активном поиске","шел как то медведь по лесу. Шел и никому не мешал. Вдруг видит машина горит, он сел в неё и сгорел..."]
[653,"Флавий","Бабаченко","м",15,"Юмор и жизнелюбие","Встречаюсь","Так сильно люблю своих соседей! что даже музычку вот им включила громко чтоб слышали."]
[654,"Далмат","Габараев","м",10,"Юмор и жизнелюбие","Встречаюсь","ЛЕТО!!"]
[655,"Кристина","Савостьянова","ж",18,"Саморазвитие","В активном поиске","У кошек есть вкус. Раз дерет обои, значит, фигня Ваши обои!"]
[656,"Логвин","Галикарнакский","м",13,"Деньги и слава","Без пары","Эти диалоги, которым не суждено состояться, так и крутятся у меня в голове."]
[657,"Изабелла","Галицына","ж",10,"Семья и дети","В активном поиске","Ужин при свечах - завтрак при огнетушителях"]
[658,"Лидия","Давыдива","ж",16,"Саморазвитие","В активном поиске","Эти диалоги, которым не суждено состояться, так и крутятся у меня в голове."]
[659,"Кондратий","Селиверстов","м",16,"Деньги и слава","Встречаюсь","Мои подружки самые лучшие!"]
[660,"Арсений","Михеев","м",10,"Деньги и слава","Не указано","Не знаю как быть(("]
[661,"Игнатий","Ядовин","м",14,"Деньги и слава","Не указано","С каждым годом зубные пасты становятся все лучше, а зубы все хуже."]
[662,"Ареф","Кайданов","м",16,"Саморазвитие","Встречаюсь","нажал \"новая тема\" и создал ))"]
[663,"Твердислав","Тагашов","м",14,"Саморазвитие","Не указано","Не знаю как быть(("]
[664,"Протасий","Юркевич","м",11,"Юмор и жизнелюбие","В активном поиске","ЛЕТО!!"]
[665,"Андроний","Савченков","м",18,"Юмор и жизнелюбие","В активном поиске","Абажаю контактик!"]
[666,"Иона","Елисеев","м",9,"Юмор и жизнелюбие","В активном поиске","У кошек есть вкус. Раз дерет обои, значит, фигня Ваши обои!"]
[667,"Ярослав","Владимиров","м",15,"Красота и искусство","В активном поиске","Люби меня или ненавидь — но лично мне по барабану!"]
[668,"Далмат","Загайнов","м",17,"Юмор и жизнелюбие","Встречаюсь","Я приехала с дачи"]
[669,"Семен","Загребаев","м",18,"Семья и дети","Не указано"]
[670,"Константин","Кудряшов","м",15,"Юмор и жизнелюбие","Без пары","Заткнись. Я знаю ты любишь меня!"]
[671,"Эммануил","Эзриелев","м",13,"Саморазвитие","В активном поиске","УЧЕНЬЕ свет, а за свет нужно платить"]
[672,"Андрей","Лаврентьев","м",12,"Саморазвитие","Встречаюсь","Меня все время преследуют умные мысли...но я быстрее!!!"]
[673,"Изольда","Евплова","ж",12,"Спорт и хобби","Не указано","Я могу изменить свой статус Вконтакте… Это одна из немногих вещей, изменяющихся так легко…"]
[674,"Евдокия","Жадова","ж",9,"Спорт и хобби","В активном поиске","Где-то в доме есть такое тайное место, куда носки, пульты, ключи уходят умирать."]
[675,"Валерия","Данилихина","ж",14,"Юмор и жизнелюбие","Не указано","Мои подружки самые лучшие!"]
[676,"Никифор","Лаврищенко","м",11,"Красота и искусство","Встречаюсь","ушла в школу…"]
[677,"Андрей","Миронов","м",17,"Деньги и слава","Без пары","Я говорю, что я самая лучая"]
[678,"Самсоний","Шангин","м",13,"Доброта и верность","Встречаюсь","Я приехала)))))))))))))))"]
[679,"Макарий","Евсюков","м",14,"Деньги и слава","Без пары","УЧЕНЬЕ свет, а за свет нужно платить"]
[680,"Александр","Павлов","м",12,"Юмор и жизнелюбие","Встречаюсь","Абажаю тебя, моя подрушка. Лучшая!"]
[681,"Радован","Ханаев","м",13,"Наука и исследования","Встречаюсь","загадывайте желание звезда упала)))"]
[682,"Пахом","Якимец","м",14,"Деньги и слава","Встречаюсь","Говорят что чужую жизнь прожить нельзя, но испортить все-таки можно…"]
[683,"Давид","Ширяев","м",18,"Доброта и верность","Без пары","Не знаю как быть(("]
[684,"Сергей","Кайтанов","м",18,"Красота и искусство","Встречаюсь","С каждым годом зубные пасты становятся все лучше, а зубы все хуже."]
[685,"Калуф","Данюков","м",18,"Семья и дети","В активном поиске","Говорят что чужую жизнь прожить нельзя, но испортить все-таки можно…"]
[686,"Алина","Ивачева","ж",14,"Семья и дети","Без пары","Ну и шо что ветер в голове - зато мысли всегда свежие!"]
[687,"Семион","Иванянков","м",8,"Саморазвитие","В активном поиске","Искусственный интеллект – фигня по сравнению с естественной глупостью."]
[688,"Фёдор","Обабков","м",10,"Спорт и хобби","В активном поиске","когда парень говорит что любит это не значит что он любит тебя"]
[689,"Максим","Мартынов","м",18,"Семья и дети","Не указано","Я вроде и не люблю тебя, но скучаю без тебя, очень скучаю."]
[690,"Капитолина","Павлюковец","ж",11,"Деньги и слава","Встречаюсь","Я вроде и не люблю тебя, но скучаю без тебя, очень скучаю."]
[691,"Максим","Фомин","м",16,"Юмор и жизнелюбие","В активном поиске","Абажаю контактик!"]
[692,"Каролина","Нагаева","ж",17,"Деньги и слава","Не указано","нажал \"новая тема\" и создал ))"]
[693,"Светлана","Юдичева","ж",8,"Доброта и верность","В активном поиске","загадывайте желание звезда упала)))"]
[694,"Пимен","Павлихин","м",13,"Юмор и жизнелюбие","В активном поиске","Мои подружки самые лучшие!"]
[695,"Анастасия","Загибалова","ж",18,"Деньги и слава","Встречаюсь","Эти диалоги, которым не суждено состояться, так и крутятся у меня в голове."]
[696,"Арсений","Калашников","м",11,"Семья и дети","Без пары","Где-то в доме есть такое тайное место, куда носки, пульты, ключи уходят умирать."]
[697,"Лиана","Ширяева","ж",17,"Доброта и верность","Без пары","Я говорю, что я самая лучая"]
[698,"Андрон","Ульянец","м",18,"Доброта и верность","Встречаюсь","ЧМАФФКИ всех, всех люблю!!!А))))"]
[699,"Эразм","Евдокимов","м",10,"Саморазвитие","Без пары","С каждым годом зубные пасты становятся все лучше, а зубы все хуже."]
[700,"Давид","Русаков","м",18,"Красота и искусство","Без пары","Ну и шо что ветер в голове - зато мысли всегда свежие!"]
[701,"Варфоломей","Хазановский","м",13,"Доброта и верность","Встречаюсь","Ужин при свечах - завтрак при огнетушителях"]
[702,"Алексей","Евсеев","м",14,"Семья и дети","В активном поиске","Заткнись. Я знаю ты любишь меня!"]
[703,"Мефодий","Лавренюк","м",10,"Красота и искусство","В активном поиске","Ну и шо что ветер в голове - зато мысли всегда свежие!"]
[704,"Богдан","Муравьёв","м",18,"Деньги и слава","Не указано","нажал \"новая тема\" и создал ))"]
[705,"Эвелина","Иванцева","ж",13,"Доброта и верность","Не указано","Не осуждайте чужое прошлое, вы не знаете своё будущее..."]
[706,"Наталья","Талалакина","ж",15,"Наука и исследования","Не указано","Люби меня или ненавидь — но лично мне по барабану!"]
[707,"Максим","Кузьмин","м",14,"Спорт и хобби","Без пары","нажал \"новая тема\" и создал ))"]
[708,"Капитолина","Разгуляева","ж",14,"Семья и дети","В активном поиске","Не осуждайте чужое прошлое, вы не знаете своё будущее..."]
[709,"Матвей","Давыдов","м",12,"Красота и искусство","Встречаюсь","Меня боятся миллионы."]
[710,"Натан","Цецерко","м",15,"Наука и исследования","В активном поиске","ЧМАФФКИ всех, всех люблю!!!А))))"]
[711,"Беатриса","Шаверина","ж",12,"Юмор и жизнелюбие","Не указано","Я не подарок!!! Я сюрприз)))"]
[712,"Альбина","Халтурина","ж",11,"Деньги и слава","Без пары","Искусственный интеллект – фигня по сравнению с естественной глупостью."]
[713,"Виктория","Яблочникова","ж",18,"Семья и дети","В активном поиске","УЧЕНЬЕ свет, а за свет нужно платить"]
[714,"Ярополк","Лазебников","м",9,"Деньги и слава","Не указано","УЧЕНЬЕ свет, а за свет нужно платить"]
[715,"Любовь","Мазырина","ж",8,"Спорт и хобби","В активном поиске","Я никогда не мечтал о чуде — И вы успокойтесь — и забудьте про него."]
[716,"Леопольд","Галкин","м",15,"Юмор и жизнелюбие","В активном поиске","Я приехала)))))))))))))))"]
[717,"Аввакум","Фёдоров","м",12,"Юмор и жизнелюбие","Встречаюсь","шел как то медведь по лесу. Шел и никому не мешал. Вдруг видит машина горит, он сел в неё и сгорел..."]
[718,"Осип","Завражный","м",13,"Юмор и жизнелюбие","Встречаюсь","Меня все время преследуют умные мысли...но я быстрее!!!"]
[719,"Ульяна","Валерьева","ж",14,"Юмор и жизнелюбие","Не указано","Уважительное отношение к окружающим, вот что так ценно"]
[720,"Михаил","Виноградов","м",16,"Юмор и жизнелюбие","В активном поиске","Ужин при свечах - завтрак при огнетушителях"]
[721,"Парамон","Калинин","м",14,"Доброта и верность","Без пары","Я могу изменить свой статус Вконтакте… Это одна из немногих вещей, изменяющихся так легко…"]
[722,"Фалалей","Бажов","м",8,"Саморазвитие","В активном поиске","Ужин при свечах - завтрак при огнетушителях"]
[723,"Автоном","Ханыков","м",9,"Наука и исследования","Без пары","шел как то медведь по лесу. Шел и никому не мешал. Вдруг видит машина горит, он сел в неё и сгорел..."]
[724,"Евгения","Таганова","ж",12,"Юмор и жизнелюбие","Не указано","Я могу изменить свой статус Вконтакте… Это одна из немногих вещей, изменяющихся так легко…"]
[725,"Трофим","Макарин","м",11,"Красота и искусство","В активном поиске","Я приехала с дачи"]
[726,"Дарья","Иваненкова","ж",14,"Юмор и жизнелюбие","В активном поиске","Пацаны ваще ребята, могете!"]
[727,"Каролина","Угринова","ж",13,"Юмор и жизнелюбие","Встречаюсь","Не знаю как быть(("]
[728,"Тимофей","Волков","м",8,"Саморазвитие","Без пары","Не осуждайте чужое прошлое, вы не знаете своё будущее..."]
[729,"Назар","Коновалов","м",16,"Наука и исследования","Не указано","…"]
[730,"Рубен","Ягольников","м",16,"Доброта и верность","Встречаюсь","Я не подарок!!! Я сюрприз)))"]
[731,"Наталья","Надрагина","ж",14,"Доброта и верность","Без пары","Пацаны ваще ребята, могете!"]
[732,"Светлана","Райнина","ж",8,"Деньги и слава","В активном поиске","Ужин при свечах - завтрак при огнетушителях"]
[733,"Кристина","Райнина","ж",10,"Доброта и верность","В активном поиске","и при встрече родных глаз, я опускаю свои и просто иду дальше"]
[734,"Лев","Абрамов","м",11,"Юмор и жизнелюбие","Без пары","и при встрече родных глаз, я опускаю свои и просто иду дальше"]
[735,"Каролина","Дашкина","ж",11,"Доброта и верность","Без пары","ЛЕТО!!"]
[736,"Влада","Павлихина","ж",13,"Доброта и верность","Встречаюсь","Меня боятся миллионы."]
[737,"Варламий","Бабич","м",14,"Семья и дети","Без пары","От вас столько же понимания, сколько от стены. Спасибо."]
[738,"Светлана","Мельникова","ж",11,"Саморазвитие","Без пары","Как я люблю осень!!!11111"]
[739,"Иван","Богданов","м",12,"Саморазвитие","Без пары","когда парень говорит что любит это не значит что он любит тебя"]
[740,"Тимофей","Панфилов","м",8,"Деньги и слава","В активном поиске","Так сильно люблю своих соседей! что даже музычку вот им включила громко чтоб слышали."]
[741,"Порфирий","Павкин","м",18,"Юмор и жизнелюбие","В активном поиске"]
[742,"Полина","Ладыжникова","ж",17,"Юмор и жизнелюбие","Без пары","загадывайте желание звезда упала)))"]
[743,"Марат","Радченя","м",16,"Доброта и верность","Не указано","Я могу изменить свой статус Вконтакте… Это одна из немногих вещей, изменяющихся так легко…"]
[744,"Максим","Терентьев","м",9,"Наука и исследования","В активном поиске","Я могу изменить свой статус Вконтакте… Это одна из немногих вещей, изменяющихся так легко…"]
[745,"Елена","Жебракова","ж",10,"Деньги и слава","Встречаюсь","Я приехала с дачи"]
[746,"Мартимьян","Гаврилихин","м",10,"Красота и искусство","Не указано","Я вроде и не люблю тебя, но скучаю без тебя, очень скучаю."]
[747,"Роман","Тихонов","м",10,"Семья и дети","Не указано","Нигде не ведут себя так вежливо, как в очереди к стоматологу...  "]
[748,"Элеонора","Евстафьева","ж",17,"Деньги и слава","В активном поиске","Я не подарок!!! Я сюрприз)))"]
[749,"Лев","Андреев","м",17,"Доброта и верность","Встречаюсь","Эти диалоги, которым не суждено состояться, так и крутятся у меня в голове."]
[750,"Артем","Титов","м",9,"Красота и искусство","В активном поиске","шел как то медведь по лесу. Шел и никому не мешал. Вдруг видит машина горит, он сел в неё и сгорел..."]
[751,"Исай","Гайдамакин","м",15,"Юмор и жизнелюбие","Не указано","Ужин при свечах - завтрак при огнетушителях"]
[752,"Егор","Орехов","м",16,"Саморазвитие","В активном поиске","Меня все время преследуют умные мысли...но я быстрее!!!"]
[753,"Евмен","Устинов","м",13,"Юмор и жизнелюбие","Без пары","Нигде не ведут себя так вежливо, как в очереди к стоматологу...  "]
[754,"Марин","Удовенко","м",13,"Спорт и хобби","В активном поиске","Ну лан, мне пора"]
[755,"Святослав","Ханов","м",9,"Наука и исследования","В активном поиске","У кошек есть вкус. Раз дерет обои, значит, фигня Ваши обои!"]
[756,"Артем","Фокин","м",17,"Юмор и жизнелюбие","Без пары","Я приехала)))))))))))))))"]
[757,"Диана","Ядрова","ж",17,"Спорт и хобби","В активном поиске","Я приехала с дачи"]
[758,"Денис","Никитин","м",14,"Семья и дети","Встречаюсь","От вас столько же понимания, сколько от стены. Спасибо."]
[759,"Жанна","Разамасцева","ж",12,"Доброта и верность","Не указано","УЧЕНЬЕ свет, а за свет нужно платить"]
[760,"Сергей","Убейсобакин","м",10,"Спорт и хобби","В активном поиске","Так сильно люблю своих соседей! что даже музычку вот им включила громко чтоб слышали."]
[761,"Эмилия","Иванюкова","ж",18,"Наука и исследования","Встречаюсь","Я приехала с дачи"]
[762,"Александра","Авдеенкова","ж",10,"Спорт и хобби","Встречаюсь","Не надо говорить, что я плохая. Просто найди лучше, чем я, и отстань."]
[763,"Селивёрст","Данишевский","м",17,"Саморазвитие","Не указано","загадывайте желание звезда упала)))"]
[764,"Вероника","Ивахнушкина","ж",12,"Спорт и хобби","Встречаюсь","Так сильно люблю своих соседей! что даже музычку вот им включила громко чтоб слышали."]
[765,"Светлана","Жданкина","ж",16,"Наука и исследования","Без пары"]
[766,"Роман","Анисимов","м",14,"Деньги и слава","Встречаюсь","Эти диалоги, которым не суждено состояться, так и крутятся у меня в голове."]
[767,"Станислав","Мазовецкий","м",18,"Красота и искусство","Без пары","Я приехала)))))))))))))))"]
[768,"Митофан","Загородный","м",14,"Наука и исследования","В активном поиске","Мои подружки самые лучшие!"]
[769,"Святослав","Александров","м",14,"Доброта и верность","В активном поиске","Говорят что чужую жизнь прожить нельзя, но испортить все-таки можно…"]
[770,"Виргиния","Киселёва","ж",10,"Красота и искусство","В активном поиске","Не надо говорить, что я плохая. Просто найди лучше, чем я, и отстань."]
[771,"Остап","Казеев","м",8,"Юмор и жизнелюбие","В активном поиске","ЧМАФФКИ всех, всех люблю!!!А))))"]
[772,"Виталий","Рябов","м",8,"Красота и искусство","Без пары","У кошек есть вкус. Раз дерет обои, значит, фигня Ваши обои!"]
[773,"Эвелина","Зайчикова","ж",16,"Семья и дети","Без пары","Я приехала)))))))))))))))"]
[774,"Матвей","Дьячков","м",10,"Наука и исследования","Встречаюсь","Я никогда не мечтал о чуде — И вы успокойтесь — и забудьте про него."]
[775,"Платон","Иванютин","м",8,"Спорт и хобби","Встречаюсь","Введите здесь текст вашего статуса"]
[776,"Клавдия","Рагозинина","ж",9,"Наука и исследования","Не указано","Меня боятся миллионы."]
[777,"Анастасия","Данилкина","ж",10,"Деньги и слава","Встречаюсь","Я приехала с дачи"]
[778,"Наталия","Чеботина","ж",9,"Наука и исследования","Без пары","Пацаны ваще ребята, могете!"]
[779,"Варвара","Исаева","ж",16,"Юмор и жизнелюбие","Не указано","Уважительное отношение к окружающим, вот что так ценно"]
[780,"Никита","Фролов","м",15,"Юмор и жизнелюбие","В активном поиске","Абажаю тебя, моя подрушка. Лучшая!"]
[781,"Бонифат","Хаджинов","м",11,"Доброта и верность","В активном поиске","Уважительное отношение к окружающим, вот что так ценно"]
[782,"Кастрихий","Вандышев","м",8,"Наука и исследования","Не указано","Искусственный интеллект – фигня по сравнению с естественной глупостью."]
[783,"Макар","Рожков","м",12,"Саморазвитие","Без пары","ушла в школу…"]
[784,"Анисий","Корнилов","м",18,"Красота и искусство","Без пары","Нигде не ведут себя так вежливо, как в очереди к стоматологу...  "]
[785,"Флавиан","Узков","м",15,"Семья и дети","Встречаюсь","Купила чай для похудения - ничего так, классно с пироженным идёт!"]
[786,"Анастосия","Тихонова","ж",9,"Красота и искусство","Встречаюсь","ЧМАФФКИ всех, всех люблю!!!А))))"]
[787,"Анастасия","Павленова","ж",18,"Доброта и верность","В активном поиске","Абажаю контактик!"]
[788,"Варвара","Базанова","ж",13,"Спорт и хобби","Без пары","У кошек есть вкус. Раз дерет обои, значит, фигня Ваши обои!"]
[789,"Глеб","Кабанов","м",8,"Саморазвитие","Не указано","С каждым годом зубные пасты становятся все лучше, а зубы все хуже."]
[790,"Александр","Захаров","м",8,"Наука и исследования","Не указано","ушла в школу…"]
[791,"Модест","Кайтанов","м",15,"Доброта и верность","Не указано","Эти диалоги, которым не суждено состояться, так и крутятся у меня в голове."]
[792,"Надежда","Лазаревич","ж",12,"Семья и дети","Не указано","Меня боятся миллионы."]
[793,"Мечислав","Наградов","м",15,"Саморазвитие","Встречаюсь","и при встрече родных глаз, я опускаю свои и просто иду дальше"]
[794,"Антон","Обрезков","м",9,"Юмор и жизнелюбие","В активном поиске","Я никогда не мечтал о чуде — И вы успокойтесь — и забудьте про него."]
[795,"Евгений","Царегородцев","м",17,"Доброта и верность","Без пары","ушла в школу…"]
[796,"Артём","Овсяников","м",10,"Деньги и слава","Без пары","…"]
[797,"Иосафат","Данченков","м",12,"Наука и исследования","В активном поиске","ЛЕТО!!"]
[798,"Изабелла","Ханова","ж",16,"Деньги и слава","Встречаюсь","Я никогда не мечтал о чуде — И вы успокойтесь — и забудьте про него."]
[799,"Дмитрий","Туров","м",12,"Наука и исследования","Не указано","Заткнись. Я знаю ты любишь меня!"]
[800,"Ратибор","Савиновский","м",13,"Юмор и жизнелюбие","Встречаюсь","Я никогда не мечтал о чуде — И вы успокойтесь — и забудьте про него."]
[801,"Исаакин","Ивахнушкин","м",15,"Саморазвитие","Не указано","Я приехала с дачи"]
[802,"Изосим","Иванин","м",14,"Спорт и хобби","Не указано","Нигде не ведут себя так вежливо, как в очереди к стоматологу...  "]
[803,"Владислава","Шамынина","ж",13,"Доброта и верность","Не указано","Я вроде и не люблю тебя, но скучаю без тебя, очень скучаю."]
[804,"Анисим","Часовников","м",13,"Деньги и слава","Встречаюсь","Меня не надо менять, меня надо понять."]
[805,"Анфиса","Габдулхаева","ж",18,"Юмор и жизнелюбие","В активном поиске","Я приехала)))))))))))))))"]
[806,"Ипатий","Шавруков","м",14,"Юмор и жизнелюбие","Встречаюсь","Купила чай для похудения - ничего так, классно с пироженным идёт!"]
[807,"Лиана","Чаркина","ж",15,"Спорт и хобби","Не указано","Ну лан, мне пора"]
[808,"Леонид","Фадюшин","м",15,"Юмор и жизнелюбие","Встречаюсь","Не надо говорить, что я плохая. Просто найди лучше, чем я, и отстань."]
[809,"Денис","Зуев","м",15,"Наука и исследования","Без пары","УЧЕНЬЕ свет, а за свет нужно платить"]
[810,"Ярослав","Мельников","м",11,"Деньги и слава","В активном поиске"]
[811,"Константин","Жданов","м",17,"Спорт и хобби","Не указано","Меня боятся миллионы."]
[812,"Дарья","Мазанькова","ж",18,"Саморазвитие","Без пары","ушла в школу…"]
[813,"Инесса","Евстратенкова","ж",10,"Деньги и слава","Не указано","Искусственный интеллект – фигня по сравнению с естественной глупостью."]
[814,"Дарья","Овчинина","ж",8,"Наука и исследования","Без пары","когда парень говорит что любит это не значит что он любит тебя"]
[815,"Онисим","Мазурев","м",18,"Саморазвитие","Встречаюсь","Абажаю тебя, моя подрушка. Лучшая!"]
[816,"Изольда","Магомедова","ж",12,"Красота и искусство","Встречаюсь","Не знаю как быть(("]
[817,"Даниил","Николаев","м",9,"Семья и дети","Не указано","Введите здесь текст вашего статуса"]
[818,"Кондратий","Савичев","м",11,"Семья и дети","Встречаюсь","ЛЕТО!!"]
[819,"Аристарх","Газизов","м",18,"Юмор и жизнелюбие","В активном поиске","Купила чай для похудения - ничего так, классно с пироженным идёт!"]
[820,"Феоктист","Железняк","м",18,"Юмор и жизнелюбие","Не указано","У кошек есть вкус. Раз дерет обои, значит, фигня Ваши обои!"]
[821,"Егор","Гурьев","м",18,"Доброта и верность","Встречаюсь","Меня боятся миллионы."]
[822,"Рената","Образкова","ж",18,"Спорт и хобби","В активном поиске","Мои подружки самые лучшие!"]
[823,"Владлена","Овидиева","ж",12,"Спорт и хобби","Встречаюсь","Люби меня или ненавидь — но лично мне по барабану!"]
[824,"Авель","Ладыжинский","м",15,"Красота и искусство","В активном поиске","Абажаю тебя, моя подрушка. Лучшая!"]
[825,"Елизавета","Майданова","ж",13,"Деньги и слава","Встречаюсь","Купила чай для похудения - ничего так, классно с пироженным идёт!"]
[826,"Киприан","Галикарнакский","м",14,"Саморазвитие","В активном поиске","Пацаны ваще ребята, могете!"]
[827,"Глеб","Маслов","м",9,"Наука и исследования","Не указано","Я приехала)))))))))))))))"]
[828,"Анастасия","Юрченко","ж",17,"Семья и дети","Без пары","Искусственный интеллект – фигня по сравнению с естественной глупостью."]
[829,"Татьяна","Базыкина","ж",17,"Красота и искусство","В активном поиске"]
[830,"Дмитрий","Сорокин","м",15,"Юмор и жизнелюбие","Встречаюсь","Говорят что чужую жизнь прожить нельзя, но испортить все-таки можно…"]
[831,"Марк","Петров","м",15,"Наука и исследования","Без пары","ЧМАФФКИ всех, всех люблю!!!А))))"]
[832,"Михаил","Беляков","м",15,"Деньги и слава","Не указано","Я могу изменить свой статус Вконтакте… Это одна из немногих вещей, изменяющихся так легко…"]
[833,"Самбила","Палашин","м",17,"Доброта и верность","Встречаюсь","Пацаны ваще ребята, могете!"]
[834,"Казимир","Хазанович","м",18,"Красота и искусство","Без пары","Как я люблю осень!!!11111"]
[835,"Фаина","Багаева","ж",11,"Наука и исследования","Встречаюсь","Мои подружки самые лучшие!"]
[836,"Антонина","Ладынина","ж",15,"Семья и дети","Не указано","С каждым годом зубные пасты становятся все лучше, а зубы все хуже."]
[837,"Варвара","Вакуленко","ж",15,"Семья и дети","В активном поиске","Ужин при свечах - завтрак при огнетушителях"]
[838,"Вонифатий","Желтиков","м",14,"Юмор и жизнелюбие","Без пары","Так сильно люблю своих соседей! что даже музычку вот им включила громко чтоб слышали."]
[839,"Витовт","Жадный","м",17,"Спорт и хобби","Не указано","Не знаю как быть(("]
[840,"Саверий","Исаев","м",12,"Красота и искусство","В активном поиске","Говорят что чужую жизнь прожить нельзя, но испортить все-таки можно…"]
[841,"Палладий","Жабоедов","м",12,"Наука и исследования","Встречаюсь","Я вроде и не люблю тебя, но скучаю без тебя, очень скучаю."]
[842,"Гаврила","Разин","м",14,"Доброта и верность","Встречаюсь","Я приехала)))))))))))))))"]
[843,"Ефрем","Вальчук","м",18,"Спорт и хобби","Встречаюсь","нажал \"новая тема\" и создал ))"]

{"sheet":"Задачки 2. Самостоятельная","index":2,"n_rows":7,"n_cols":2,"rows_kept":7,"cut":false,"hidden":false,"merged":[]}
[]
[null,"СР"]
[null,"1. Создать новый лист."]
[null,"2. Скопировать таблицу Пользователи на новый лист."]
[null,"3. Добавить дополнительные 2 столбца в новую таблицу."]
[null,"4. Придмать по аналогии еще 7 вопросов."]
[null,"5. Ответить на собственные вопросы."]

{"sheet":"Подпись","index":3,"n_rows":0,"n_cols":0,"rows_kept":0,"cut":false,"hidden":true,"merged":[]}